OrganisationNameLabel,OrganisationURI,EffectiveDate,Directorate/ServiceWhereExpenditureIncurred,ServiceCategoryLabel,ServiceCategoryURI,Supplier,SupplierRegisteredCompany Number,PaymentDate,TransactionNumber,NetAmount,IrrecoverableVAT,PurposeOfSpend,ProcurementClassification:ProclassLabel,ProcrementClassification:ProClassCode
South Lakeland District Council,http://opendatacommunities.org/id/district-council/south-lakeland,31/12/2016,Lake Wardens,Cultural Environmental Regulatory & Planning Services,http://opendatacommunities.org/def/concept/finance/sercop/objective/104,TECHNIJET LTD,02776601,12-12-2016,0000062387,77.81,0,Bi-Annual Service of Pressure Washers,139999,Cleaning & Janitorial Not Elsewhere Clas
South Lakeland District Council,http://opendatacommunities.org/id/district-council/south-lakeland,31/12/2016,Business Support Community Services,Internal Trading Accounts,,Preston Trade Parts Specialists,,19-12-2016,0000063026,9.12,0,Spring,381400,Vehicle Mgt Maintenance
South Lakeland District Council,http://opendatacommunities.org/id/district-council/south-lakeland,31/12/2016,Business Support Community Services,Central Services,http://opendatacommunities.org/def/concept/finance/sercop/objective/102,TOUCHDOWN OFFICES LTD,04844444,05-12-2016,0000063252,220.07,0,Call charges 2016/17,271700,ICT Telecommunications Fixed
South Lakeland District Council,http://opendatacommunities.org/id/district-council/south-lakeland,31/12/2016,Development Implementation,Central Services,http://opendatacommunities.org/def/concept/finance/sercop/objective/102,CRUDEN PROPERTY SERVICES LTD,03851237,12-12-2016,0000063347,43272.3,0,"Conversion of Brogden Street, Ulverston",391111,Construction Buildings Repair & Mtce
South Lakeland District Council,http://opendatacommunities.org/id/district-council/south-lakeland,31/12/2016,Business Support Community Services,Housing Services,http://opendatacommunities.org/def/concept/finance/sercop/objective/108,G B BURROW & SON,,21-12-2016,0000063473,165,0,Storage of belongings ,192300,Facilities Storage
South Lakeland District Council,http://opendatacommunities.org/id/district-council/south-lakeland,31/12/2016,Business Support Community Services,Internal Trading Accounts,,EK MOTOR FACTORS LTD,00838524,21-12-2016,0000063484,4,0,Connector,381400,Vehicle Mgt Maintenance
South Lakeland District Council,http://opendatacommunities.org/id/district-council/south-lakeland,31/12/2016,Social Enterprise Admin,Cultural Environmental Regulatory & Planning Services,http://opendatacommunities.org/def/concept/finance/sercop/objective/104,THE NATIONAL TRUST,,21-12-2016,0000063551,175.96,0,Materials for replacement steps at,202100,Financial Services Subscriptions
South Lakeland District Council,http://opendatacommunities.org/id/district-council/south-lakeland,31/12/2016,Business Support Community Services,Internal Trading Accounts,,COMPASS COMPONENTS,,19-12-2016,0000063569,285.34,0,Consumables 01/04/16 - 31/03/17,101400,Building General Materials
South Lakeland District Council,http://opendatacommunities.org/id/district-council/south-lakeland,31/12/2016,Human Resources,Central Services,http://opendatacommunities.org/def/concept/finance/sercop/objective/102,MIDLAND SOFTWARE LTD,01852206,19-12-2016,0000063601,166.35,0,Maintenance RTI 11 01/04/2017 to,271600,ICT Software Customised & Bespoke
South Lakeland District Council,http://opendatacommunities.org/id/district-council/south-lakeland,31/12/2016,Business Support Community Services,Internal Trading Accounts,,MYERSCOUGH COLLEGE,,05-12-2016,0000063616,300,0,Sustainable waste management ,908999,Public Bodies Not Elsewhere Classified
South Lakeland District Council,http://opendatacommunities.org/id/district-council/south-lakeland,31/12/2016,ICT Group,Central Services,http://opendatacommunities.org/def/concept/finance/sercop/objective/102,SOCITM LIMITED,04396808,30-11-2016,0000063651,960,0,"Website take up service, 12 month",152200,Consultancy Technical & Feasibility
South Lakeland District Council,http://opendatacommunities.org/id/district-council/south-lakeland,31/12/2016,Customer Services,Central Services,http://opendatacommunities.org/def/concept/finance/sercop/objective/102,NORTHGATE VEHICLE HIRE LTD,01434157,05-12-2016,0000063658,15.14,0,1 day car hire on 15th,381600,Vehicle Mgt Leasing
South Lakeland District Council,http://opendatacommunities.org/id/district-council/south-lakeland,31/12/2016,Kendal Town Hall,Central Services,http://opendatacommunities.org/def/concept/finance/sercop/objective/102,BERENDSEN UK LTD,00228604,05-12-2016,0000063663,82.5,0,Monthly rental of anti- slip mats for,161000,Domestic Goods Commercial
South Lakeland District Council,http://opendatacommunities.org/id/district-council/south-lakeland,31/12/2016,Kendal Town Hall,Cultural Environmental Regulatory & Planning Services,http://opendatacommunities.org/def/concept/finance/sercop/objective/104,BERENDSEN UK LTD,00228604,05-12-2016,0000063663,19.67,0,Monthly rental of anti- slip mats for,161000,Domestic Goods Commercial
South Lakeland District Council,http://opendatacommunities.org/id/district-council/south-lakeland,31/12/2016,Social Enterprise Admin,Cultural Environmental Regulatory & Planning Services,http://opendatacommunities.org/def/concept/finance/sercop/objective/104,THOMSON REUTERS (PROFESSIONAL) UK LTD,01679046,07-12-2016,0000063668,58,0,PLANNING CONT THEIR REINFORCEMENT REL 23,202100,Financial Services Subscriptions
South Lakeland District Council,http://opendatacommunities.org/id/district-council/south-lakeland,31/12/2016,Policy & Partnerships,Central Services,http://opendatacommunities.org/def/concept/finance/sercop/objective/102,GATES TRAVEL SERVICE,,14-12-2016,0000063678,101.7,0,Train Tickets for,261600,HR Travel & Subsistence
South Lakeland District Council,http://opendatacommunities.org/id/district-council/south-lakeland,31/12/2016,Human Resources,SLDC as Agent,,Cumbria Neighbourhood Watch Association,05854713,14-12-2016,0000063679,500,0,Cumbria Neighbourhood watch Association,908001,Public Bodies Other Public Bodies
South Lakeland District Council,http://opendatacommunities.org/id/district-council/south-lakeland,31/12/2016,Revenues and Benefits,Central Services,http://opendatacommunities.org/def/concept/finance/sercop/objective/102,MERITEC LTD,03224622,05-12-2016,0000063682,139.5,0,2016 - 2017  RAB Processing Contract and,391200,Construction Engineering
South Lakeland District Council,http://opendatacommunities.org/id/district-council/south-lakeland,31/12/2016,Business Support Community Services,SLDC as Agent,,CUMBRIA COUNTY COUNCIL,,07-12-2016,0000063684,432,0,DBS Checks,908000,Public Bodies Council support services
South Lakeland District Council,http://opendatacommunities.org/id/district-council/south-lakeland,31/12/2016,Financial Services,Central Services,http://opendatacommunities.org/def/concept/finance/sercop/objective/102,TIAA Ltd,04546319,07-12-2016,0000063687,3283.3,0,16/17 Internal Audit,201100,Financial Services Audit
South Lakeland District Council,http://opendatacommunities.org/id/district-council/south-lakeland,31/12/2016,ICT Group,Central Services,http://opendatacommunities.org/def/concept/finance/sercop/objective/102,VODAFONE LIMITED,01471587,05-12-2016,0000063688,2776.03,0,Mobile phone call costs,271800,ICT Telecommunications Mobile
South Lakeland District Council,http://opendatacommunities.org/id/district-council/south-lakeland,31/12/2016,Kendal Town Hall,Cultural Environmental Regulatory & Planning Services,http://opendatacommunities.org/def/concept/finance/sercop/objective/104,HYGIENE CLEANING SUPPLIES LTD,04753934,05-12-2016,0000063692,84.29,0,T698 RED PVC YARD BRUSH - COMPLETE UNIT,131011,Cleaning & Janitorial Cleaning Materials
South Lakeland District Council,http://opendatacommunities.org/id/district-council/south-lakeland,31/12/2016,Development Implementation,Cultural Environmental Regulatory & Planning Services,http://opendatacommunities.org/def/concept/finance/sercop/objective/104,Agency,,05-12-2016,0000063715,350,0,Marketing for Invest & Explore Websites,270000,Information Communications Technology
South Lakeland District Council,http://opendatacommunities.org/id/district-council/south-lakeland,31/12/2016,Legal Services,Internal Trading Accounts,,PENNINGTONS (KENDAL) LIMITED,00434649,05-12-2016,0000063717,2000,0,Annual Charge for use of Link Road at,182013,Environment Waste Mgt Waste Collection
South Lakeland District Council,http://opendatacommunities.org/id/district-council/south-lakeland,31/12/2016,Printing Section,Central Services,http://opendatacommunities.org/def/concept/finance/sercop/objective/102,GANDLAKE TECHNOLOGY LTD,,07-12-2016,0000063718,2260.53,0,Rental License per quarter for,271440,ICT Software
South Lakeland District Council,http://opendatacommunities.org/id/district-council/south-lakeland,31/12/2016,Human Resources,Central Services,http://opendatacommunities.org/def/concept/finance/sercop/objective/102,Choose Occupational Health,07365943,05-12-2016,0000063743,380,0,Half day clinic - September 2016 -,191800,Facilities Public Relations & Image
South Lakeland District Council,http://opendatacommunities.org/id/district-council/south-lakeland,31/12/2016,Human Resources,Central Services,http://opendatacommunities.org/def/concept/finance/sercop/objective/102,Choose Occupational Health,07365943,05-12-2016,0000063744,105,0,Pre-employment medical,191800,Facilities Public Relations & Image
South Lakeland District Council,http://opendatacommunities.org/id/district-council/south-lakeland,31/12/2016,Policy & Partnerships,Cultural Environmental Regulatory & Planning Services,http://opendatacommunities.org/def/concept/finance/sercop/objective/104,Ruskin Museum,,05-12-2016,0000063745,3500,0,Replacement of current lighting system,201700,Financial Services Grants
South Lakeland District Council,http://opendatacommunities.org/id/district-council/south-lakeland,31/12/2016,Legal Services,Central Services,http://opendatacommunities.org/def/concept/finance/sercop/objective/102,LOCAL GOVERNMENT ASSOCIATION,,14-12-2016,0000063746,481.94,0,Fees in respect of Property Searches,202100,Financial Services Subscriptions
South Lakeland District Council,http://opendatacommunities.org/id/district-council/south-lakeland,31/12/2016,Human Resources,Central Services,http://opendatacommunities.org/def/concept/finance/sercop/objective/102,Forge Training,,05-12-2016,0000063747,1290,0,20th & 21st February for 2 x half day,261500,HR Training & Conferences
South Lakeland District Council,http://opendatacommunities.org/id/district-council/south-lakeland,31/12/2016,Human Resources,Central Services,http://opendatacommunities.org/def/concept/finance/sercop/objective/102,THE QUAKER TAPESTRY KENDAL LTD,,07-12-2016,0000063749,402,0,"Room Hire 23rd, 24th, 25th November",291400,Arts & Leisure Services Sport & Fitness
South Lakeland District Council,http://opendatacommunities.org/id/district-council/south-lakeland,31/12/2016,Social Enterprise Admin,Cultural Environmental Regulatory & Planning Services,http://opendatacommunities.org/def/concept/finance/sercop/objective/104,Borderloos,03350965,07-12-2016,0000063750,3535.72,0,For the continuation of hire of the,199999,Facilities Not Elsewhere Classified
South Lakeland District Council,http://opendatacommunities.org/id/district-council/south-lakeland,31/12/2016,Business Support Community Services,Internal Trading Accounts,,CUMBRIA WASTE RECYCLING LTD,03162439,07-12-2016,0000063751,1757,0,Skip emptying at Ecclerigg & Ulverston,182012,Environment Waste Management Recycling
South Lakeland District Council,http://opendatacommunities.org/id/district-council/south-lakeland,31/12/2016,Business Support Community Services,Internal Trading Accounts,,CUMBRIA WASTE RECYCLING LTD,03162439,07-12-2016,0000063752,448,0,Skip emptying at Ecclerigg & Ulverston,182012,Environment Waste Management Recycling
South Lakeland District Council,http://opendatacommunities.org/id/district-council/south-lakeland,31/12/2016,Business Support Community Services,Internal Trading Accounts,,EK MOTOR FACTORS LTD,00838524,07-12-2016,0000063753,5.95,0,Connector,381400,Vehicle Mgt Maintenance
South Lakeland District Council,http://opendatacommunities.org/id/district-council/south-lakeland,31/12/2016,Business Support Community Services,Internal Trading Accounts,,EK MOTOR FACTORS LTD,00838524,07-12-2016,0000063754,5.95,0,Connector,381400,Vehicle Mgt Maintenance
South Lakeland District Council,http://opendatacommunities.org/id/district-council/south-lakeland,31/12/2016,Business Support Community Services,Internal Trading Accounts,,EK MOTOR FACTORS LTD,00838524,07-12-2016,0000063756,152.85,0,Connector,381400,Vehicle Mgt Maintenance
South Lakeland District Council,http://opendatacommunities.org/id/district-council/south-lakeland,31/12/2016,Business Support Community Services,Internal Trading Accounts,,TAYLOR ENGINEERING & FABRICATIONS LTD,04989359,07-12-2016,0000063757,182.77,0,Seals,391200,Construction Engineering
South Lakeland District Council,http://opendatacommunities.org/id/district-council/south-lakeland,31/12/2016,Business Support Community Services,Internal Trading Accounts,,TAYLOR ENGINEERING & FABRICATIONS LTD,04989359,07-12-2016,0000063758,326.14,0,Seals,391200,Construction Engineering
South Lakeland District Council,http://opendatacommunities.org/id/district-council/south-lakeland,31/12/2016,Environment and Housing,Housing Services,http://opendatacommunities.org/def/concept/finance/sercop/objective/108,GROWING CONCERNS LTD,,05-12-2016,0000063759,1130.3,0,Payment for Handy Person Scheme,391200,Construction Engineering
South Lakeland District Council,http://opendatacommunities.org/id/district-council/south-lakeland,31/12/2016,Business Support Community Services,Housing Services,http://opendatacommunities.org/def/concept/finance/sercop/objective/108,Property Account,,05-12-2016,0000063760,1095.54,0,Two Months rent in advance,250000,Housing
South Lakeland District Council,http://opendatacommunities.org/id/district-council/south-lakeland,31/12/2016,Revenues and Benefits,Central Services,http://opendatacommunities.org/def/concept/finance/sercop/objective/102,MERITEC LTD,03224622,07-12-2016,0000063767,139.5,0,2016 - 2017  RAB Processing Contract and,391200,Construction Engineering
South Lakeland District Council,http://opendatacommunities.org/id/district-council/south-lakeland,31/12/2016,Business Support Community Services,Housing Services,http://opendatacommunities.org/def/concept/finance/sercop/objective/108,GATES TRAVEL SERVICE,,14-12-2016,0000063769,64.5,0,Train ticket/ travel warrant,261600,HR Travel & Subsistence
South Lakeland District Council,http://opendatacommunities.org/id/district-council/south-lakeland,31/12/2016,Business Support Community Services,Cultural Environmental Regulatory & Planning Services,http://opendatacommunities.org/def/concept/finance/sercop/objective/104,OCS GROUP LTD T/A CANNON HYGIENE LTD,01298292,07-12-2016,0000063771,2256.89,0,Clinical waste collections - 2016/17,131011,Cleaning & Janitorial Cleaning Materials
South Lakeland District Council,http://opendatacommunities.org/id/district-council/south-lakeland,31/12/2016,Business Support Community Services,Internal Trading Accounts,,HYDRAIR TRUCK & TRAILER PARTS LTD,,07-12-2016,0000063772,174.55,0,Valve,381500,Vehicle Mgt Parts
South Lakeland District Council,http://opendatacommunities.org/id/district-council/south-lakeland,31/12/2016,Business Support Community Services,Internal Trading Accounts,,EK MOTOR FACTORS LTD,00838524,07-12-2016,0000063773,9.49,0,Cabin filter,381400,Vehicle Mgt Maintenance
South Lakeland District Council,http://opendatacommunities.org/id/district-council/south-lakeland,31/12/2016,Business Support Community Services,Internal Trading Accounts,,DENNIS EAGLE LTD,03794455,07-12-2016,0000063774,266.54,0,Wiper arms,381300,Vehicle Mgt Industrial
South Lakeland District Council,http://opendatacommunities.org/id/district-council/south-lakeland,31/12/2016,Business Support Community Services,Internal Trading Accounts,,EK MOTOR FACTORS LTD,00838524,07-12-2016,0000063775,8.42,0,Cabin filter,381400,Vehicle Mgt Maintenance
South Lakeland District Council,http://opendatacommunities.org/id/district-council/south-lakeland,31/12/2016,Business Support Community Services,Internal Trading Accounts,,DENNIS EAGLE LTD,03794455,07-12-2016,0000063776,243.47,0,Wiper arms,381300,Vehicle Mgt Industrial
South Lakeland District Council,http://opendatacommunities.org/id/district-council/south-lakeland,31/12/2016,Social Enterprise Admin,Cultural Environmental Regulatory & Planning Services,http://opendatacommunities.org/def/concept/finance/sercop/objective/104,CHARTERED INSTITUTE OF HOUSING,,07-12-2016,0000063777,174,0,CHARTERED INSTITUTE OF HOUSING,202100,Financial Services Subscriptions
South Lakeland District Council,http://opendatacommunities.org/id/district-council/south-lakeland,31/12/2016,Business Support Community Services,Internal Trading Accounts,,EK MOTOR FACTORS LTD,00838524,07-12-2016,0000063778,61.36,0,Cabin filter,381400,Vehicle Mgt Maintenance
South Lakeland District Council,http://opendatacommunities.org/id/district-council/south-lakeland,31/12/2016,Business Support Community Services,Internal Trading Accounts,,EK MOTOR FACTORS LTD,00838524,07-12-2016,0000063779,5,0,Cabin filter,381400,Vehicle Mgt Maintenance
South Lakeland District Council,http://opendatacommunities.org/id/district-council/south-lakeland,31/12/2016,Business Support Community Services,Internal Trading Accounts,,EK MOTOR FACTORS LTD,00838524,07-12-2016,0000063780,5.95,0,Cabin filter,381400,Vehicle Mgt Maintenance
South Lakeland District Council,http://opendatacommunities.org/id/district-council/south-lakeland,31/12/2016,Business Support Community Services,Internal Trading Accounts,,EK MOTOR FACTORS LTD,00838524,07-12-2016,0000063781,5.95,0,Cabin filter,381400,Vehicle Mgt Maintenance
South Lakeland District Council,http://opendatacommunities.org/id/district-council/south-lakeland,31/12/2016,Business Support Community Services,Internal Trading Accounts,,EK MOTOR FACTORS LTD,00838524,07-12-2016,0000063782,42.4,0,Cabin filter,381400,Vehicle Mgt Maintenance
South Lakeland District Council,http://opendatacommunities.org/id/district-council/south-lakeland,31/12/2016,Social Enterprise Admin,Highways & Transport Services,http://opendatacommunities.org/def/concept/finance/sercop/objective/107,METRIC GROUP LIMITED,02560839,07-12-2016,0000063783,693,0,Web hosting and web tariff editor for 66,359999,Street & Traffic Not Elsewhere Classifie
South Lakeland District Council,http://opendatacommunities.org/id/district-council/south-lakeland,31/12/2016,Business Support Community Services,Internal Trading Accounts,,DENNIS EAGLE LTD,03794455,07-12-2016,0000063784,583.27,0,Wiper arms,381300,Vehicle Mgt Industrial
South Lakeland District Council,http://opendatacommunities.org/id/district-council/south-lakeland,31/12/2016,Business Support Community Services,Internal Trading Accounts,,ARCO LIMITED,00133804,07-12-2016,0000063785,18.21,0,Cleaning materials,141100,Clothing Protective
South Lakeland District Council,http://opendatacommunities.org/id/district-council/south-lakeland,31/12/2016,Business Support Community Services,Internal Trading Accounts,,ARCO LIMITED,00133804,07-12-2016,0000063786,66.88,0,Cleaning materials,141100,Clothing Protective
South Lakeland District Council,http://opendatacommunities.org/id/district-council/south-lakeland,31/12/2016,Business Support Community Services,Internal Trading Accounts,,EK MOTOR FACTORS LTD,00838524,07-12-2016,0000063787,49.6,0,Cabin filter,381400,Vehicle Mgt Maintenance
South Lakeland District Council,http://opendatacommunities.org/id/district-council/south-lakeland,31/12/2016,Business Support Community Services,Internal Trading Accounts,,EK MOTOR FACTORS LTD,00838524,07-12-2016,0000063788,-14.09,0,Cabin filter,381400,Vehicle Mgt Maintenance
South Lakeland District Council,http://opendatacommunities.org/id/district-council/south-lakeland,31/12/2016,Business Support Community Services,Internal Trading Accounts,,EK MOTOR FACTORS LTD,00838524,07-12-2016,0000063789,-18.48,0,Cabin filter,381400,Vehicle Mgt Maintenance
South Lakeland District Council,http://opendatacommunities.org/id/district-council/south-lakeland,31/12/2016,ICT Group,Central Services,http://opendatacommunities.org/def/concept/finance/sercop/objective/102,MERITEC LTD,03224622,07-12-2016,0000063790,16500,0,12 month web service contract for SLDC,391200,Construction Engineering
South Lakeland District Council,http://opendatacommunities.org/id/district-council/south-lakeland,31/12/2016,Business Support Community Services,Cultural Environmental Regulatory & Planning Services,http://opendatacommunities.org/def/concept/finance/sercop/objective/104,Outsrc Ltd,07691779,07-12-2016,0000063792,200,0,Hosting of Go Easy Website for 12 months,271515,ICT Website Development
South Lakeland District Council,http://opendatacommunities.org/id/district-council/south-lakeland,31/12/2016,Business Support Community Services,Cultural Environmental Regulatory & Planning Services,http://opendatacommunities.org/def/concept/finance/sercop/objective/104,Buckingham Futures,8329499,07-12-2016,0000063793,1277.33,0,Supply 1 Full Time Private Water Officer,182030,Environment Water Assessment & Treatment
South Lakeland District Council,http://opendatacommunities.org/id/district-council/south-lakeland,31/12/2016,Customer Services,Central Services,http://opendatacommunities.org/def/concept/finance/sercop/objective/102,SHRED-IT,04047194,19-12-2016,0000063794,496.86,0,for removal of shred it,279999,ICT Not Elsewhere Classified
South Lakeland District Council,http://opendatacommunities.org/id/district-council/south-lakeland,31/12/2016,Business Support Community Services,Cultural Environmental Regulatory & Planning Services,http://opendatacommunities.org/def/concept/finance/sercop/objective/104,UNITED UTILITIES WATER PLC,2366678,07-12-2016,0000063795,1145.1,0,Private Water Analysis - October 2016,371300,Utilities Water
South Lakeland District Council,http://opendatacommunities.org/id/district-council/south-lakeland,31/12/2016,Legal Services,Central Services,http://opendatacommunities.org/def/concept/finance/sercop/objective/102,NEWSQUEST MEDIA GROUP LTD,03102566,07-12-2016,0000063796,141.12,0,Advert to appear 24.11.16  re:  Kirkby,191000,Facilities Advertising
South Lakeland District Council,http://opendatacommunities.org/id/district-council/south-lakeland,31/12/2016,Human Resources,Central Services,http://opendatacommunities.org/def/concept/finance/sercop/objective/102,KENDAL COLLEGE,,07-12-2016,0000063797,350,0,"Excel, Word, Powerpoint, outlook and",908999,Public Bodies Not Elsewhere Classified
South Lakeland District Council,http://opendatacommunities.org/id/district-council/south-lakeland,31/12/2016,Human Resources,Central Services,http://opendatacommunities.org/def/concept/finance/sercop/objective/102,KENDAL COLLEGE,,07-12-2016,0000063798,350,0,"Excel, Word, Powerpoint, outlook and",908999,Public Bodies Not Elsewhere Classified
South Lakeland District Council,http://opendatacommunities.org/id/district-council/south-lakeland,31/12/2016,Business Support Community Services,Internal Trading Accounts,,EK MOTOR FACTORS LTD,00838524,07-12-2016,0000063799,15.09,0,Cabin filter,381400,Vehicle Mgt Maintenance
South Lakeland District Council,http://opendatacommunities.org/id/district-council/south-lakeland,31/12/2016,Business Support Community Services,Internal Trading Accounts,,GREENCHEM SOLUTIONS LTD,05175801,07-12-2016,0000063800,501.75,0,AdBlue,189999,Environmental Services Not Elsewhere Cla
South Lakeland District Council,http://opendatacommunities.org/id/district-council/south-lakeland,31/12/2016,Business Support Community Services,Internal Trading Accounts,,ARCO LIMITED,00133804,21-12-2016,0000063801,36.48,0,Cleaning materials,141100,Clothing Protective
South Lakeland District Council,http://opendatacommunities.org/id/district-council/south-lakeland,31/12/2016,Business Support Community Services,Internal Trading Accounts,,ARCO LIMITED,00133804,07-12-2016,0000063802,18.21,0,Cleaning materials,141100,Clothing Protective
South Lakeland District Council,http://opendatacommunities.org/id/district-council/south-lakeland,31/12/2016,Business Support Community Services,Internal Trading Accounts,,EK MOTOR FACTORS LTD,00838524,07-12-2016,0000063803,5.52,0,Cabin filter,381400,Vehicle Mgt Maintenance
South Lakeland District Council,http://opendatacommunities.org/id/district-council/south-lakeland,31/12/2016,Business Support Community Services,Internal Trading Accounts,,EK MOTOR FACTORS LTD,00838524,07-12-2016,0000063804,3.9,0,Cabin filter,381400,Vehicle Mgt Maintenance
South Lakeland District Council,http://opendatacommunities.org/id/district-council/south-lakeland,31/12/2016,Human Resources,Central Services,http://opendatacommunities.org/def/concept/finance/sercop/objective/102,MIDLAND SOFTWARE LTD,01852206,19-12-2016,0000063805,104.68,0,LGPS Quarterly 01/04/2017 to 30/06/2018,271600,ICT Software Customised & Bespoke
South Lakeland District Council,http://opendatacommunities.org/id/district-council/south-lakeland,31/12/2016,Human Resources,Central Services,http://opendatacommunities.org/def/concept/finance/sercop/objective/102,MIDLAND SOFTWARE LTD,01852206,19-12-2016,0000063806,2864.63,0,Software Maintenance iTrent Rental 01,271600,ICT Software Customised & Bespoke
South Lakeland District Council,http://opendatacommunities.org/id/district-council/south-lakeland,31/12/2016,Human Resources,Central Services,http://opendatacommunities.org/def/concept/finance/sercop/objective/102,MIDLAND SOFTWARE LTD,01852206,19-12-2016,0000063807,283.49,0,Maintenance RTI 11 01/04/2017 to,271600,ICT Software Customised & Bespoke
South Lakeland District Council,http://opendatacommunities.org/id/district-council/south-lakeland,31/12/2016,Business Support Community Services,Internal Trading Accounts,,Preston Trade Parts Specialists,,07-12-2016,0000063809,104.12,0,Spring,381400,Vehicle Mgt Maintenance
South Lakeland District Council,http://opendatacommunities.org/id/district-council/south-lakeland,31/12/2016,Business Support Community Services,Internal Trading Accounts,,AUTOMOTIVE GLAZING SOLUTIONS,05922870,07-12-2016,0000063811,270,0,Supply & fit windscreen,381400,Vehicle Mgt Maintenance
South Lakeland District Council,http://opendatacommunities.org/id/district-council/south-lakeland,31/12/2016,Revenues and Benefits,SLDC as Agent,,ROYAL MAIL GROUP PLC,,07-12-2016,0000063812,1522.78,0,2016 - 17  Postal Charges a/c 0198123013,301200,Mail Services� Postage
South Lakeland District Council,http://opendatacommunities.org/id/district-council/south-lakeland,31/12/2016,Business Support Community Services,Cultural Environmental Regulatory & Planning Services,http://opendatacommunities.org/def/concept/finance/sercop/objective/104,MILNTHORPE KENNELS & CATTERY,08932302,07-12-2016,0000063813,2574.71,0,Stray dog kennelling fees 1 April 2016 -,181500,Environment Animal Services
South Lakeland District Council,http://opendatacommunities.org/id/district-council/south-lakeland,31/12/2016,Revenues and Benefits,Central Services,http://opendatacommunities.org/def/concept/finance/sercop/objective/102,ROYAL MAIL GROUP PLC,,07-12-2016,0000063814,81.09,0,2016 - 2017  Postal Charges a/c,301200,Mail Services� Postage
South Lakeland District Council,http://opendatacommunities.org/id/district-council/south-lakeland,31/12/2016,Business Support Community Services,Internal Trading Accounts,,SOLWAY DAF,1393710,07-12-2016,0000063815,162.51,0,Switch,381000,Vehicle Mgt Commercial
South Lakeland District Council,http://opendatacommunities.org/id/district-council/south-lakeland,31/12/2016,Business Support Community Services,Internal Trading Accounts,,SOLWAY DAF,1393710,07-12-2016,0000063816,154.38,0,Switch,381000,Vehicle Mgt Commercial
South Lakeland District Council,http://opendatacommunities.org/id/district-council/south-lakeland,31/12/2016,Business Support Community Services,Internal Trading Accounts,,SOLWAY DAF,1393710,07-12-2016,0000063818,113.21,0,Switch,381000,Vehicle Mgt Commercial
South Lakeland District Council,http://opendatacommunities.org/id/district-council/south-lakeland,31/12/2016,Business Support Community Services,Internal Trading Accounts,,SOLWAY DAF,1393710,07-12-2016,0000063819,279.38,0,Switch,381000,Vehicle Mgt Commercial
South Lakeland District Council,http://opendatacommunities.org/id/district-council/south-lakeland,31/12/2016,Business Support Community Services,Internal Trading Accounts,,DENNIS EAGLE LTD,03794455,07-12-2016,0000063821,60.27,0,Buckle,381300,Vehicle Mgt Industrial
South Lakeland District Council,http://opendatacommunities.org/id/district-council/south-lakeland,31/12/2016,Business Support Community Services,Housing Services,http://opendatacommunities.org/def/concept/finance/sercop/objective/108,Vigilant Security Services UK Ltd,05914271,12-12-2016,0000063822,3240,0,Payment for security guard at TVF,192213,Facilities Security Manned Guarding
South Lakeland District Council,http://opendatacommunities.org/id/district-council/south-lakeland,31/12/2016,Business Support Community Services,Internal Trading Accounts,,GREENCHEM SOLUTIONS LTD,05175801,07-12-2016,0000063823,550.75,0,AdBlue,189999,Environmental Services Not Elsewhere Cla
South Lakeland District Council,http://opendatacommunities.org/id/district-council/south-lakeland,31/12/2016,Development Implementation,Planning and Development,,North Country Leisure,03683103,07-12-2016,0000063824,10000,0,EPF Grant - Multi Use Cabin at,291400,Arts & Leisure Services Sport & Fitness
South Lakeland District Council,http://opendatacommunities.org/id/district-council/south-lakeland,31/12/2016,Human Resources,Central Services,http://opendatacommunities.org/def/concept/finance/sercop/objective/102,FLORENCE MADDEN,,12-12-2016,0000063825,3546.8,0,NLP Coaching Diploma 16th-17th &,261500,HR Training & Conferences
South Lakeland District Council,http://opendatacommunities.org/id/district-council/south-lakeland,31/12/2016,Development Implementation,Central Services,http://opendatacommunities.org/def/concept/finance/sercop/objective/102,LAMBERT SMITH HAMPTON GROUP,2521225,07-12-2016,0000063826,60140.17,0,Property Services Contract - Monthly,999999,Unclassifiable
South Lakeland District Council,http://opendatacommunities.org/id/district-council/south-lakeland,31/12/2016,Human Resources,Central Services,http://opendatacommunities.org/def/concept/finance/sercop/objective/102,LAKES TRAINING SOLUTIONS LTD,07541345,07-12-2016,0000063827,300,0,3 x 3.5 hours Time Management Training,261500,HR Training & Conferences
South Lakeland District Council,http://opendatacommunities.org/id/district-council/south-lakeland,31/12/2016,Social Enterprise Admin,Cultural Environmental Regulatory & Planning Services,http://opendatacommunities.org/def/concept/finance/sercop/objective/104,LDA Cleaning Services Ltd,8917986,07-12-2016,0000063828,175,0,For  the continuation of cleaning,131310,Cleaning & Janitorial Cleaning Service
South Lakeland District Council,http://opendatacommunities.org/id/district-council/south-lakeland,31/12/2016,Social Enterprise Admin,Highways & Transport Services,http://opendatacommunities.org/def/concept/finance/sercop/objective/107,DIXON PRINTING CO LTD,,07-12-2016,0000063829,114,0,"Please print 1000 DL envelopes, with",191600,Facilities Printing
South Lakeland District Council,http://opendatacommunities.org/id/district-council/south-lakeland,31/12/2016,ICT Group,Central Services,http://opendatacommunities.org/def/concept/finance/sercop/objective/102,Insight Direct (Uk) Ltd,2579852,07-12-2016,0000063830,68.43,0,Insight #: 0000576605 Kensington Expert,271200,ICT Hardware
South Lakeland District Council,http://opendatacommunities.org/id/district-council/south-lakeland,31/12/2016,Social Enterprise Admin,Cultural Environmental Regulatory & Planning Services,http://opendatacommunities.org/def/concept/finance/sercop/objective/104,CAPITA SYMONDS LTD,03173410,07-12-2016,0000063831,2551.92,0,ARBORICULTURE SERVICES,390000,Construction
South Lakeland District Council,http://opendatacommunities.org/id/district-council/south-lakeland,31/12/2016,Social Enterprise Admin,Cultural Environmental Regulatory & Planning Services,http://opendatacommunities.org/def/concept/finance/sercop/objective/104,CAPITA SYMONDS LTD,03173410,07-12-2016,0000063831,1701.28,0,ARBORICULTURE SERVICES,390000,Construction
South Lakeland District Council,http://opendatacommunities.org/id/district-council/south-lakeland,31/12/2016,Social Enterprise Admin,Central Services,http://opendatacommunities.org/def/concept/finance/sercop/objective/102,CUMBRIA COUNTY COUNCIL,,07-12-2016,0000063832,3658,0,LAND CHARGE SEARCH ENQUIRIES,908000,Public Bodies Council support services
South Lakeland District Council,http://opendatacommunities.org/id/district-council/south-lakeland,31/12/2016,Business Support Community Services,Internal Trading Accounts,,BRIAN ARMISTEAD LTD T/A SINKFALL RECYCLI,04133280,07-12-2016,0000063833,1249.68,0,Green waste tipping - 2016/17,391110,Construction Buildings Construction
South Lakeland District Council,http://opendatacommunities.org/id/district-council/south-lakeland,31/12/2016,Development Management,Cultural Environmental Regulatory & Planning Services,http://opendatacommunities.org/def/concept/finance/sercop/objective/104,CHRIS BOWKER LTD,01642561,12-12-2016,0000063834,30,0,Checking of electrical work in,101100,Building Electrical
South Lakeland District Council,http://opendatacommunities.org/id/district-council/south-lakeland,31/12/2016,Leisure and Wellbeing,Cultural Environmental Regulatory & Planning Services,http://opendatacommunities.org/def/concept/finance/sercop/objective/104,SHORROCK TRICHEM,04179799,07-12-2016,0000063835,170.02,0,Sterihand Bactericidal Liquid Soap SK200,131312,Cleaning & Janitorial Washroom Sanitat
South Lakeland District Council,http://opendatacommunities.org/id/district-council/south-lakeland,31/12/2016,Social Enterprise Admin,Cultural Environmental Regulatory & Planning Services,http://opendatacommunities.org/def/concept/finance/sercop/objective/104,CPC,,07-12-2016,0000063836,54.49,0,Defender power and light E89820 GLS,271200,ICT Hardware
South Lakeland District Council,http://opendatacommunities.org/id/district-council/south-lakeland,31/12/2016,Lake Wardens,Cultural Environmental Regulatory & Planning Services,http://opendatacommunities.org/def/concept/finance/sercop/objective/104,VODAFONE LIMITED,01471587,12-12-2016,0000063837,99.58,0,Rental for Lake Wardens Emergency,271800,ICT Telecommunications Mobile
South Lakeland District Council,http://opendatacommunities.org/id/district-council/south-lakeland,31/12/2016,Policy & Partnerships,Central Services,http://opendatacommunities.org/def/concept/finance/sercop/objective/102,Ulverston Community Enterprises Ltd,08904327,12-12-2016,0000063838,76.66,0,Hire of Ante Room in Coronation Hall on,201700,Financial Services Grants
South Lakeland District Council,http://opendatacommunities.org/id/district-council/south-lakeland,31/12/2016,Environment and Housing,Housing Services,http://opendatacommunities.org/def/concept/finance/sercop/objective/108,The Oyster Partnership,05020374,07-12-2016,0000063839,888.16,0,Agency,261300,HR Recruitment & Assessment
South Lakeland District Council,http://opendatacommunities.org/id/district-council/south-lakeland,31/12/2016,Business Support Community Services,Internal Trading Accounts,,DAVID HAYTON LTD,02312632,07-12-2016,0000063840,9.76,0,Pedal rubber,381500,Vehicle Mgt Parts
South Lakeland District Council,http://opendatacommunities.org/id/district-council/south-lakeland,31/12/2016,Business Support Community Services,Internal Trading Accounts,,A & W COMMERCIALS LTD,02630625,07-12-2016,0000063841,187.44,0,Fit hose to PX57 EUH,381400,Vehicle Mgt Maintenance
South Lakeland District Council,http://opendatacommunities.org/id/district-council/south-lakeland,31/12/2016,Business Support Community Services,Internal Trading Accounts,,Haztec International Ltd,04157886,07-12-2016,0000063842,435.86,0,Lamps,380000,Vehicle Management
South Lakeland District Council,http://opendatacommunities.org/id/district-council/south-lakeland,31/12/2016,Business Support Community Services,Internal Trading Accounts,,HAKO MACHINES LIMITED,01414225,07-12-2016,0000063843,375,0,Training,131000,Cleaning & Janitorial Cleaning Materials
South Lakeland District Council,http://opendatacommunities.org/id/district-council/south-lakeland,31/12/2016,Business Support Community Services,Internal Trading Accounts,,HAKO MACHINES LIMITED,01414225,07-12-2016,0000063843,125,0,Training,131000,Cleaning & Janitorial Cleaning Materials
South Lakeland District Council,http://opendatacommunities.org/id/district-council/south-lakeland,31/12/2016,Business Support Community Services,Internal Trading Accounts,,Oil Recoveries Ltd,07190350,07-12-2016,0000063844,100,0,Oil collection,380000,Vehicle Management
South Lakeland District Council,http://opendatacommunities.org/id/district-council/south-lakeland,31/12/2016,Business Support Community Services,Internal Trading Accounts,,TECHNIJET LTD,02776601,07-12-2016,0000063845,2000,0,Pressure washer,139999,Cleaning & Janitorial Not Elsewhere Clas
South Lakeland District Council,http://opendatacommunities.org/id/district-council/south-lakeland,31/12/2016,Business Support Community Services,Internal Trading Accounts,,BRIAN ARMISTEAD LTD T/A SINKFALL RECYCLI,04133280,07-12-2016,0000063846,721.19,0,Green waste tipping - 2016/17,391110,Construction Buildings Construction
South Lakeland District Council,http://opendatacommunities.org/id/district-council/south-lakeland,31/12/2016,Business Support Community Services,Internal Trading Accounts,,Occupational Health North West Ltd,06393073,07-12-2016,0000063847,300,0,Health assessments,229999,Health & Safety� Not Elsewhere Classifie
South Lakeland District Council,http://opendatacommunities.org/id/district-council/south-lakeland,31/12/2016,Business Support Community Services,Internal Trading Accounts,,ARCO LIMITED,00133804,07-12-2016,0000063848,11.61,0,Cleaning materials,141100,Clothing Protective
South Lakeland District Council,http://opendatacommunities.org/id/district-council/south-lakeland,31/12/2016,Business Support Community Services,Internal Trading Accounts,,ARCO LIMITED,00133804,07-12-2016,0000063849,46.44,0,Cleaning materials,141100,Clothing Protective
South Lakeland District Council,http://opendatacommunities.org/id/district-council/south-lakeland,31/12/2016,Business Support Community Services,Internal Trading Accounts,,TAYLOR ENGINEERING & FABRICATIONS LTD,04989359,07-12-2016,0000063850,178.51,0,Seals,391200,Construction Engineering
South Lakeland District Council,http://opendatacommunities.org/id/district-council/south-lakeland,31/12/2016,Business Support Community Services,Internal Trading Accounts,,TAYLOR ENGINEERING & FABRICATIONS LTD,04989359,07-12-2016,0000063851,66.24,0,Seals,391200,Construction Engineering
South Lakeland District Council,http://opendatacommunities.org/id/district-council/south-lakeland,31/12/2016,Business Support Community Services,Internal Trading Accounts,,HAKO MACHINES LIMITED,01414225,07-12-2016,0000063852,222.58,0,Wheel,131000,Cleaning & Janitorial Cleaning Materials
South Lakeland District Council,http://opendatacommunities.org/id/district-council/south-lakeland,31/12/2016,Business Support Community Services,Internal Trading Accounts,,Harry Park Tyres Ltd,08131208,19-12-2016,0000063853,30,0,Call out,381500,Vehicle Mgt Parts
South Lakeland District Council,http://opendatacommunities.org/id/district-council/south-lakeland,31/12/2016,Business Support Community Services,Internal Trading Accounts,,Masterstaff Limited,02777593,07-12-2016,0000063854,2927.24,0,Agency staff - December 2016,261300,HR Recruitment & Assessment
South Lakeland District Council,http://opendatacommunities.org/id/district-council/south-lakeland,31/12/2016,Business Support Community Services,Internal Trading Accounts,,MYERSCOUGH COLLEGE,,19-12-2016,0000063855,900,0,Sustainable waste management ,908999,Public Bodies Not Elsewhere Classified
South Lakeland District Council,http://opendatacommunities.org/id/district-council/south-lakeland,31/12/2016,Revenues and Benefits,Central Services,http://opendatacommunities.org/def/concept/finance/sercop/objective/102,TAMESIDE METROPOLITAN BOROUGH,,07-12-2016,0000063856,1414.57,0,2016 -2017 NAFN credit and other,202100,Financial Services Subscriptions
South Lakeland District Council,http://opendatacommunities.org/id/district-council/south-lakeland,31/12/2016,Human Resources,Non-Service Payments,,BUSY BEES BENEFITS LTD,06758298,07-12-2016,0000063857,423,0,child care vouchers,202100,Financial Services Subscriptions
South Lakeland District Council,http://opendatacommunities.org/id/district-council/south-lakeland,31/12/2016,Human Resources,Central Services,http://opendatacommunities.org/def/concept/finance/sercop/objective/102,BUSY BEES BENEFITS LTD,06758298,07-12-2016,0000063858,14.8,0,child care vouchers,202100,Financial Services Subscriptions
South Lakeland District Council,http://opendatacommunities.org/id/district-council/south-lakeland,31/12/2016,Business Support Community Services,Internal Trading Accounts,,Harry Park Tyres Ltd,08131208,19-12-2016,0000063862,3650.5,0,Call out,381500,Vehicle Mgt Parts
South Lakeland District Council,http://opendatacommunities.org/id/district-council/south-lakeland,31/12/2016,Financial Services,Non-Service Payments,,COMPUTERSHARE VOUCHER SERVICES LTD,04968447,07-12-2016,0000063864,1000,0,child care vouchers deducted from ee per,202100,Financial Services Subscriptions
South Lakeland District Council,http://opendatacommunities.org/id/district-council/south-lakeland,31/12/2016,Business Support Community Services,Internal Trading Accounts,,Harry Park Tyres Ltd,08131208,19-12-2016,0000063865,140,0,Call out,381500,Vehicle Mgt Parts
South Lakeland District Council,http://opendatacommunities.org/id/district-council/south-lakeland,31/12/2016,Business Support Community Services,Internal Trading Accounts,,Preston Trade Parts Specialists,,19-12-2016,0000063866,84.34,0,Switch,381400,Vehicle Mgt Maintenance
South Lakeland District Council,http://opendatacommunities.org/id/district-council/south-lakeland,31/12/2016,Business Support Community Services,Internal Trading Accounts,,Harry Park Tyres Ltd,08131208,19-12-2016,0000063868,30,0,Call out,381500,Vehicle Mgt Parts
South Lakeland District Council,http://opendatacommunities.org/id/district-council/south-lakeland,31/12/2016,Business Support Community Services,Internal Trading Accounts,,Harry Park Tyres Ltd,08131208,19-12-2016,0000063869,825,0,Call out,381500,Vehicle Mgt Parts
South Lakeland District Council,http://opendatacommunities.org/id/district-council/south-lakeland,31/12/2016,Business Support Community Services,Internal Trading Accounts,,Preston Trade Parts Specialists,,19-12-2016,0000063870,77.76,0,Switch,381400,Vehicle Mgt Maintenance
South Lakeland District Council,http://opendatacommunities.org/id/district-council/south-lakeland,31/12/2016,Business Support Community Services,Internal Trading Accounts,,K S INTERNATIONAL LTD,02703321,19-12-2016,0000063871,280,0,Starter motor,381500,Vehicle Mgt Parts
South Lakeland District Council,http://opendatacommunities.org/id/district-council/south-lakeland,31/12/2016,Development Implementation,Cultural Environmental Regulatory & Planning Services,http://opendatacommunities.org/def/concept/finance/sercop/objective/104,ADECCO UK LIMITED,00593232,21-12-2016,0000063872,403.2,0,SLDC Project Officer - ,261400,HR Temporary & Agency Staff
South Lakeland District Council,http://opendatacommunities.org/id/district-council/south-lakeland,31/12/2016,Development Implementation,Cultural Environmental Regulatory & Planning Services,http://opendatacommunities.org/def/concept/finance/sercop/objective/104,ADECCO UK LIMITED,00593232,21-12-2016,0000063873,312,0,Administrator - Renate Parker (24hrs,261400,HR Temporary & Agency Staff
South Lakeland District Council,http://opendatacommunities.org/id/district-council/south-lakeland,31/12/2016,Legal Services,Central Services,http://opendatacommunities.org/def/concept/finance/sercop/objective/102,Legal Counsel Ltd,10147194,07-12-2016,0000063874,1884,0,Employee,281200,Legal Services General Support
South Lakeland District Council,http://opendatacommunities.org/id/district-council/south-lakeland,31/12/2016,Business Support Community Services,Housing Services,http://opendatacommunities.org/def/concept/finance/sercop/objective/108,Landlord,,07-12-2016,0000063879,400,0,Monthly rent ,250010,Housing Letting Agents
South Lakeland District Council,http://opendatacommunities.org/id/district-council/south-lakeland,31/12/2016,Business Support Community Services,Housing Services,http://opendatacommunities.org/def/concept/finance/sercop/objective/108,Landlord,,07-12-2016,0000063880,500,0,Monthly rent payment,202000,Financial Services Rents
South Lakeland District Council,http://opendatacommunities.org/id/district-council/south-lakeland,31/12/2016,Business Support Community Services,Housing Services,http://opendatacommunities.org/def/concept/finance/sercop/objective/108,Landlord,,07-12-2016,0000063881,400,0,Monthly rent ,250000,Housing
South Lakeland District Council,http://opendatacommunities.org/id/district-council/south-lakeland,31/12/2016,Business Support Community Services,Housing Services,http://opendatacommunities.org/def/concept/finance/sercop/objective/108,BURNETTS,02726138,07-12-2016,0000063882,975,0,Rent arrears,280000,Legal Services
South Lakeland District Council,http://opendatacommunities.org/id/district-council/south-lakeland,31/12/2016,Environment and Housing,Housing,http://opendatacommunities.org/def/concept/finance/sercop/objective/108,The Excellent Ramp System Ltd,05369407,07-12-2016,0000063883,4286.9,0,"Fairfield, Flookburgh,",250000,Housing
South Lakeland District Council,http://opendatacommunities.org/id/district-council/south-lakeland,31/12/2016,Environment and Housing,Housing,http://opendatacommunities.org/def/concept/finance/sercop/objective/108,Kendal Building Company,0348755,07-12-2016,0000063885,13029.62,0,"Moorside, Flookburgh,",101400,Building General Materials
South Lakeland District Council,http://opendatacommunities.org/id/district-council/south-lakeland,31/12/2016,Social Enterprise Admin,Cultural Environmental Regulatory & Planning Services,http://opendatacommunities.org/def/concept/finance/sercop/objective/104,LDA Cleaning Services Ltd,8917986,12-12-2016,0000063886,175,0,For  the continuation of cleaning,131310,Cleaning & Janitorial Cleaning Service
South Lakeland District Council,http://opendatacommunities.org/id/district-council/south-lakeland,31/12/2016,Business Support Community Services,Housing Services,http://opendatacommunities.org/def/concept/finance/sercop/objective/108,My Dream Cleaners Ltd,09839482,12-12-2016,0000063887,712.5,0,Cleaning at Town View Fields Hostel,131320,Cleaning & Janitorial Cleaning Service
South Lakeland District Council,http://opendatacommunities.org/id/district-council/south-lakeland,31/12/2016,Development Management,Cultural Environmental Regulatory & Planning Services,http://opendatacommunities.org/def/concept/finance/sercop/objective/104,R G PARKINS & PARTNERS LTD,04107150,14-12-2016,0000063891,2558,0,"fees for this initial design phase, our",152200,Consultancy Technical & Feasibility
South Lakeland District Council,http://opendatacommunities.org/id/district-council/south-lakeland,31/12/2016,Lake Wardens,Cultural Environmental Regulatory & Planning Services,http://opendatacommunities.org/def/concept/finance/sercop/objective/104,ENVIROFIRST LTD,05999123,19-12-2016,0000063892,73.6,0,Rental & Emptying of Re-Cycling Bins at,182012,Environment Waste Management Recycling
South Lakeland District Council,http://opendatacommunities.org/id/district-council/south-lakeland,31/12/2016,Financial Services,Central Services,http://opendatacommunities.org/def/concept/finance/sercop/objective/102,TIAA Ltd,04546319,07-12-2016,0000063893,1641.65,0,16/17 Internal Audit,201100,Financial Services Audit
South Lakeland District Council,http://opendatacommunities.org/id/district-council/south-lakeland,31/12/2016,Social Enterprise Admin,Highways & Transport Services,http://opendatacommunities.org/def/concept/finance/sercop/objective/107,METRIC GROUP LIMITED,02560839,14-12-2016,0000063894,990,0,Chip and Pin costs for 66 machines 1,359999,Street & Traffic Not Elsewhere Classifie
South Lakeland District Council,http://opendatacommunities.org/id/district-council/south-lakeland,31/12/2016,Social Enterprise Admin,Highways & Transport Services,http://opendatacommunities.org/def/concept/finance/sercop/objective/107,METRIC GROUP LIMITED,02560839,14-12-2016,0000063895,71.3,0,Machine maintenance contract from 1,359999,Street & Traffic Not Elsewhere Classifie
South Lakeland District Council,http://opendatacommunities.org/id/district-council/south-lakeland,31/12/2016,Social Enterprise Admin,Highways & Transport Services,http://opendatacommunities.org/def/concept/finance/sercop/objective/107,METRIC GROUP LIMITED,02560839,14-12-2016,0000063895,71.3,0,Machine maintenance contract from 1,359999,Street & Traffic Not Elsewhere Classifie
South Lakeland District Council,http://opendatacommunities.org/id/district-council/south-lakeland,31/12/2016,Social Enterprise Admin,Highways & Transport Services,http://opendatacommunities.org/def/concept/finance/sercop/objective/107,METRIC GROUP LIMITED,02560839,14-12-2016,0000063895,71.3,0,Machine maintenance contract from 1,359999,Street & Traffic Not Elsewhere Classifie
South Lakeland District Council,http://opendatacommunities.org/id/district-council/south-lakeland,31/12/2016,Social Enterprise Admin,Highways & Transport Services,http://opendatacommunities.org/def/concept/finance/sercop/objective/107,METRIC GROUP LIMITED,02560839,14-12-2016,0000063895,142.6,0,Machine maintenance contract from 1,359999,Street & Traffic Not Elsewhere Classifie
South Lakeland District Council,http://opendatacommunities.org/id/district-council/south-lakeland,31/12/2016,Social Enterprise Admin,Highways & Transport Services,http://opendatacommunities.org/def/concept/finance/sercop/objective/107,METRIC GROUP LIMITED,02560839,14-12-2016,0000063895,149.2,0,Machine maintenance contract from 1,359999,Street & Traffic Not Elsewhere Classifie
South Lakeland District Council,http://opendatacommunities.org/id/district-council/south-lakeland,31/12/2016,Social Enterprise Admin,Highways & Transport Services,http://opendatacommunities.org/def/concept/finance/sercop/objective/107,METRIC GROUP LIMITED,02560839,14-12-2016,0000063895,142.6,0,Machine maintenance contract from 1,359999,Street & Traffic Not Elsewhere Classifie
South Lakeland District Council,http://opendatacommunities.org/id/district-council/south-lakeland,31/12/2016,Social Enterprise Admin,Highways & Transport Services,http://opendatacommunities.org/def/concept/finance/sercop/objective/107,METRIC GROUP LIMITED,02560839,14-12-2016,0000063895,71.3,0,Machine maintenance contract from 1,359999,Street & Traffic Not Elsewhere Classifie
South Lakeland District Council,http://opendatacommunities.org/id/district-council/south-lakeland,31/12/2016,Social Enterprise Admin,Highways & Transport Services,http://opendatacommunities.org/def/concept/finance/sercop/objective/107,METRIC GROUP LIMITED,02560839,14-12-2016,0000063895,285.2,0,Machine maintenance contract from 1,359999,Street & Traffic Not Elsewhere Classifie
South Lakeland District Council,http://opendatacommunities.org/id/district-council/south-lakeland,31/12/2016,Social Enterprise Admin,Highways & Transport Services,http://opendatacommunities.org/def/concept/finance/sercop/objective/107,METRIC GROUP LIMITED,02560839,14-12-2016,0000063895,142.6,0,Machine maintenance contract from 1,359999,Street & Traffic Not Elsewhere Classifie
South Lakeland District Council,http://opendatacommunities.org/id/district-council/south-lakeland,31/12/2016,Social Enterprise Admin,Highways & Transport Services,http://opendatacommunities.org/def/concept/finance/sercop/objective/107,METRIC GROUP LIMITED,02560839,14-12-2016,0000063895,142.6,0,Machine maintenance contract from 1,359999,Street & Traffic Not Elsewhere Classifie
South Lakeland District Council,http://opendatacommunities.org/id/district-council/south-lakeland,31/12/2016,Social Enterprise Admin,Highways & Transport Services,http://opendatacommunities.org/def/concept/finance/sercop/objective/107,METRIC GROUP LIMITED,02560839,14-12-2016,0000063895,71.3,0,Machine maintenance contract from 1,359999,Street & Traffic Not Elsewhere Classifie
South Lakeland District Council,http://opendatacommunities.org/id/district-council/south-lakeland,31/12/2016,Social Enterprise Admin,Highways & Transport Services,http://opendatacommunities.org/def/concept/finance/sercop/objective/107,METRIC GROUP LIMITED,02560839,14-12-2016,0000063895,213.9,0,Machine maintenance contract from 1,359999,Street & Traffic Not Elsewhere Classifie
South Lakeland District Council,http://opendatacommunities.org/id/district-council/south-lakeland,31/12/2016,Social Enterprise Admin,Highways & Transport Services,http://opendatacommunities.org/def/concept/finance/sercop/objective/107,METRIC GROUP LIMITED,02560839,14-12-2016,0000063895,71.3,0,Machine maintenance contract from 1,359999,Street & Traffic Not Elsewhere Classifie
South Lakeland District Council,http://opendatacommunities.org/id/district-council/south-lakeland,31/12/2016,Social Enterprise Admin,Highways & Transport Services,http://opendatacommunities.org/def/concept/finance/sercop/objective/107,METRIC GROUP LIMITED,02560839,14-12-2016,0000063895,71.3,0,Machine maintenance contract from 1,359999,Street & Traffic Not Elsewhere Classifie
South Lakeland District Council,http://opendatacommunities.org/id/district-council/south-lakeland,31/12/2016,Social Enterprise Admin,Highways & Transport Services,http://opendatacommunities.org/def/concept/finance/sercop/objective/107,METRIC GROUP LIMITED,02560839,14-12-2016,0000063895,71.3,0,Machine maintenance contract from 1,359999,Street & Traffic Not Elsewhere Classifie
South Lakeland District Council,http://opendatacommunities.org/id/district-council/south-lakeland,31/12/2016,Social Enterprise Admin,Highways & Transport Services,http://opendatacommunities.org/def/concept/finance/sercop/objective/107,METRIC GROUP LIMITED,02560839,14-12-2016,0000063895,213.9,0,Machine maintenance contract from 1,359999,Street & Traffic Not Elsewhere Classifie
South Lakeland District Council,http://opendatacommunities.org/id/district-council/south-lakeland,31/12/2016,Social Enterprise Admin,Highways & Transport Services,http://opendatacommunities.org/def/concept/finance/sercop/objective/107,METRIC GROUP LIMITED,02560839,14-12-2016,0000063895,71.3,0,Machine maintenance contract from 1,359999,Street & Traffic Not Elsewhere Classifie
South Lakeland District Council,http://opendatacommunities.org/id/district-council/south-lakeland,31/12/2016,Social Enterprise Admin,Highways & Transport Services,http://opendatacommunities.org/def/concept/finance/sercop/objective/107,METRIC GROUP LIMITED,02560839,14-12-2016,0000063895,213.9,0,Machine maintenance contract from 1,359999,Street & Traffic Not Elsewhere Classifie
South Lakeland District Council,http://opendatacommunities.org/id/district-council/south-lakeland,31/12/2016,Social Enterprise Admin,Highways & Transport Services,http://opendatacommunities.org/def/concept/finance/sercop/objective/107,METRIC GROUP LIMITED,02560839,14-12-2016,0000063895,71.3,0,Machine maintenance contract from 1,359999,Street & Traffic Not Elsewhere Classifie
South Lakeland District Council,http://opendatacommunities.org/id/district-council/south-lakeland,31/12/2016,Social Enterprise Admin,Highways & Transport Services,http://opendatacommunities.org/def/concept/finance/sercop/objective/107,METRIC GROUP LIMITED,02560839,14-12-2016,0000063895,71.3,0,Machine maintenance contract from 1,359999,Street & Traffic Not Elsewhere Classifie
South Lakeland District Council,http://opendatacommunities.org/id/district-council/south-lakeland,31/12/2016,Social Enterprise Admin,Highways & Transport Services,http://opendatacommunities.org/def/concept/finance/sercop/objective/107,METRIC GROUP LIMITED,02560839,14-12-2016,0000063895,142.6,0,Machine maintenance contract from 1,359999,Street & Traffic Not Elsewhere Classifie
South Lakeland District Council,http://opendatacommunities.org/id/district-council/south-lakeland,31/12/2016,Social Enterprise Admin,Highways & Transport Services,http://opendatacommunities.org/def/concept/finance/sercop/objective/107,METRIC GROUP LIMITED,02560839,14-12-2016,0000063895,71.3,0,Machine maintenance contract from 1,359999,Street & Traffic Not Elsewhere Classifie
South Lakeland District Council,http://opendatacommunities.org/id/district-council/south-lakeland,31/12/2016,Social Enterprise Admin,Highways & Transport Services,http://opendatacommunities.org/def/concept/finance/sercop/objective/107,METRIC GROUP LIMITED,02560839,14-12-2016,0000063895,71.3,0,Machine maintenance contract from 1,359999,Street & Traffic Not Elsewhere Classifie
South Lakeland District Council,http://opendatacommunities.org/id/district-council/south-lakeland,31/12/2016,Social Enterprise Admin,Highways & Transport Services,http://opendatacommunities.org/def/concept/finance/sercop/objective/107,METRIC GROUP LIMITED,02560839,14-12-2016,0000063895,71.3,0,Machine maintenance contract from 1,359999,Street & Traffic Not Elsewhere Classifie
South Lakeland District Council,http://opendatacommunities.org/id/district-council/south-lakeland,31/12/2016,Social Enterprise Admin,Highways & Transport Services,http://opendatacommunities.org/def/concept/finance/sercop/objective/107,METRIC GROUP LIMITED,02560839,14-12-2016,0000063895,142.6,0,Machine maintenance contract from 1,359999,Street & Traffic Not Elsewhere Classifie
South Lakeland District Council,http://opendatacommunities.org/id/district-council/south-lakeland,31/12/2016,Social Enterprise Admin,Highways & Transport Services,http://opendatacommunities.org/def/concept/finance/sercop/objective/107,METRIC GROUP LIMITED,02560839,14-12-2016,0000063895,142.6,0,Machine maintenance contract from 1,359999,Street & Traffic Not Elsewhere Classifie
South Lakeland District Council,http://opendatacommunities.org/id/district-council/south-lakeland,31/12/2016,Social Enterprise Admin,Highways & Transport Services,http://opendatacommunities.org/def/concept/finance/sercop/objective/107,METRIC GROUP LIMITED,02560839,14-12-2016,0000063895,71.3,0,Machine maintenance contract from 1,359999,Street & Traffic Not Elsewhere Classifie
South Lakeland District Council,http://opendatacommunities.org/id/district-council/south-lakeland,31/12/2016,Social Enterprise Admin,Highways & Transport Services,http://opendatacommunities.org/def/concept/finance/sercop/objective/107,METRIC GROUP LIMITED,02560839,14-12-2016,0000063895,71.3,0,Machine maintenance contract from 1,359999,Street & Traffic Not Elsewhere Classifie
South Lakeland District Council,http://opendatacommunities.org/id/district-council/south-lakeland,31/12/2016,Social Enterprise Admin,Highways & Transport Services,http://opendatacommunities.org/def/concept/finance/sercop/objective/107,METRIC GROUP LIMITED,02560839,14-12-2016,0000063895,71.3,0,Machine maintenance contract from 1,359999,Street & Traffic Not Elsewhere Classifie
South Lakeland District Council,http://opendatacommunities.org/id/district-council/south-lakeland,31/12/2016,Social Enterprise Admin,Highways & Transport Services,http://opendatacommunities.org/def/concept/finance/sercop/objective/107,METRIC GROUP LIMITED,02560839,14-12-2016,0000063895,356.5,0,Machine maintenance contract from 1,359999,Street & Traffic Not Elsewhere Classifie
South Lakeland District Council,http://opendatacommunities.org/id/district-council/south-lakeland,31/12/2016,Social Enterprise Admin,Highways & Transport Services,http://opendatacommunities.org/def/concept/finance/sercop/objective/107,METRIC GROUP LIMITED,02560839,14-12-2016,0000063895,71.3,0,Machine maintenance contract from 1,359999,Street & Traffic Not Elsewhere Classifie
South Lakeland District Council,http://opendatacommunities.org/id/district-council/south-lakeland,31/12/2016,Social Enterprise Admin,Highways & Transport Services,http://opendatacommunities.org/def/concept/finance/sercop/objective/107,METRIC GROUP LIMITED,02560839,14-12-2016,0000063895,71.3,0,Machine maintenance contract from 1,359999,Street & Traffic Not Elsewhere Classifie
South Lakeland District Council,http://opendatacommunities.org/id/district-council/south-lakeland,31/12/2016,Social Enterprise Admin,Highways & Transport Services,http://opendatacommunities.org/def/concept/finance/sercop/objective/107,METRIC GROUP LIMITED,02560839,14-12-2016,0000063895,142.6,0,Machine maintenance contract from 1,359999,Street & Traffic Not Elsewhere Classifie
South Lakeland District Council,http://opendatacommunities.org/id/district-council/south-lakeland,31/12/2016,Social Enterprise Admin,Highways & Transport Services,http://opendatacommunities.org/def/concept/finance/sercop/objective/107,METRIC GROUP LIMITED,02560839,14-12-2016,0000063895,142.6,0,Machine maintenance contract from 1,359999,Street & Traffic Not Elsewhere Classifie
South Lakeland District Council,http://opendatacommunities.org/id/district-council/south-lakeland,31/12/2016,Social Enterprise Admin,Highways & Transport Services,http://opendatacommunities.org/def/concept/finance/sercop/objective/107,METRIC GROUP LIMITED,02560839,14-12-2016,0000063895,142.6,0,Machine maintenance contract from 1,359999,Street & Traffic Not Elsewhere Classifie
South Lakeland District Council,http://opendatacommunities.org/id/district-council/south-lakeland,31/12/2016,Social Enterprise Admin,Highways & Transport Services,http://opendatacommunities.org/def/concept/finance/sercop/objective/107,METRIC GROUP LIMITED,02560839,14-12-2016,0000063895,356.5,0,Machine maintenance contract from 1,359999,Street & Traffic Not Elsewhere Classifie
South Lakeland District Council,http://opendatacommunities.org/id/district-council/south-lakeland,31/12/2016,Social Enterprise Admin,Highways & Transport Services,http://opendatacommunities.org/def/concept/finance/sercop/objective/107,METRIC GROUP LIMITED,02560839,14-12-2016,0000063895,71.3,0,Machine maintenance contract from 1,359999,Street & Traffic Not Elsewhere Classifie
South Lakeland District Council,http://opendatacommunities.org/id/district-council/south-lakeland,31/12/2016,Social Enterprise Admin,Highways & Transport Services,http://opendatacommunities.org/def/concept/finance/sercop/objective/107,METRIC GROUP LIMITED,02560839,14-12-2016,0000063895,71.3,0,Machine maintenance contract from 1,359999,Street & Traffic Not Elsewhere Classifie
South Lakeland District Council,http://opendatacommunities.org/id/district-council/south-lakeland,31/12/2016,Leisure and Wellbeing,Cultural Environmental Regulatory & Planning Services,http://opendatacommunities.org/def/concept/finance/sercop/objective/104,PARKLAND MACHINERY LTD,05253701,14-12-2016,0000063896,555,0,To install roundabout shaft and install,331000,Sports Playground Equipment
South Lakeland District Council,http://opendatacommunities.org/id/district-council/south-lakeland,31/12/2016,Social Enterprise Admin,Cultural Environmental Regulatory & Planning Services,http://opendatacommunities.org/def/concept/finance/sercop/objective/104,NEWSQUEST MEDIA GROUP LTD,03102566,12-12-2016,0000063897,241.92,0,PUBLIC NOTICES FOR PLANNING 1 APRIL - 31,191000,Facilities Advertising
South Lakeland District Council,http://opendatacommunities.org/id/district-council/south-lakeland,31/12/2016,Business Support Community Services,Internal Trading Accounts,,RIBBLESDALE AUTO ELECTRICS 1992 LTD,02732686,12-12-2016,0000063898,106.5,0,Battery,381500,Vehicle Mgt Parts
South Lakeland District Council,http://opendatacommunities.org/id/district-council/south-lakeland,31/12/2016,Business Support Community Services,Internal Trading Accounts,,RIBBLESDALE AUTO ELECTRICS 1992 LTD,02732686,12-12-2016,0000063899,62.5,0,Battery,381500,Vehicle Mgt Parts
South Lakeland District Council,http://opendatacommunities.org/id/district-council/south-lakeland,31/12/2016,Business Support Community Services,Internal Trading Accounts,,RIBBLESDALE AUTO ELECTRICS 1992 LTD,02732686,12-12-2016,0000063900,128.6,0,Parts,381500,Vehicle Mgt Parts
South Lakeland District Council,http://opendatacommunities.org/id/district-council/south-lakeland,31/12/2016,Business Support Community Services,Internal Trading Accounts,,RIBBLESDALE AUTO ELECTRICS 1992 LTD,02732686,12-12-2016,0000063901,15.27,0,Parts,381500,Vehicle Mgt Parts
South Lakeland District Council,http://opendatacommunities.org/id/district-council/south-lakeland,31/12/2016,Business Support Community Services,Internal Trading Accounts,,RIBBLESDALE AUTO ELECTRICS 1992 LTD,02732686,12-12-2016,0000063902,101.52,0,Parts,381500,Vehicle Mgt Parts
South Lakeland District Council,http://opendatacommunities.org/id/district-council/south-lakeland,31/12/2016,Business Support Community Services,Internal Trading Accounts,,RIBBLESDALE AUTO ELECTRICS 1992 LTD,02732686,12-12-2016,0000063903,23,0,Parts,381500,Vehicle Mgt Parts
South Lakeland District Council,http://opendatacommunities.org/id/district-council/south-lakeland,31/12/2016,Business Support Community Services,Internal Trading Accounts,,RIBBLESDALE AUTO ELECTRICS 1992 LTD,02732686,12-12-2016,0000063904,35.5,0,Parts,381500,Vehicle Mgt Parts
South Lakeland District Council,http://opendatacommunities.org/id/district-council/south-lakeland,31/12/2016,Business Support Community Services,Internal Trading Accounts,,RIBBLESDALE AUTO ELECTRICS 1992 LTD,02732686,14-12-2016,0000063905,168,0,Battery,381500,Vehicle Mgt Parts
South Lakeland District Council,http://opendatacommunities.org/id/district-council/south-lakeland,31/12/2016,Business Support Community Services,Internal Trading Accounts,,RIBBLESDALE AUTO ELECTRICS 1992 LTD,02732686,12-12-2016,0000063906,184,0,Battery,381500,Vehicle Mgt Parts
South Lakeland District Council,http://opendatacommunities.org/id/district-council/south-lakeland,31/12/2016,Business Support Community Services,Cultural Environmental Regulatory & Planning Services,http://opendatacommunities.org/def/concept/finance/sercop/objective/104,MOGO UK,03091301,14-12-2016,0000063909,602.9,0,MP-1 Hackney Carriage Plate Set (Printed,281400,Legal Services Specialist Support
South Lakeland District Council,http://opendatacommunities.org/id/district-council/south-lakeland,31/12/2016,Lake Wardens,Cultural Environmental Regulatory & Planning Services,http://opendatacommunities.org/def/concept/finance/sercop/objective/104,CPC,,14-12-2016,0000063911,53.88,0,1 x 110v GLS Festoon Light Kit.,271200,ICT Hardware
South Lakeland District Council,http://opendatacommunities.org/id/district-council/south-lakeland,31/12/2016,Business Support Community Services,Housing Services,http://opendatacommunities.org/def/concept/finance/sercop/objective/108,STATION HOUSE SURGERY,,14-12-2016,0000063912,25,0,Medical advice ,311600,Healthcare Services
South Lakeland District Council,http://opendatacommunities.org/id/district-council/south-lakeland,31/12/2016,Kendal Town Hall,Highways & Transport Services,http://opendatacommunities.org/def/concept/finance/sercop/objective/107,ADECCO UK LIMITED,00593232,12-12-2016,0000063913,361.62,0,Agency staff to cover Parking Assistant,261400,HR Temporary & Agency Staff
South Lakeland District Council,http://opendatacommunities.org/id/district-council/south-lakeland,31/12/2016,Kendal Town Hall,Highways & Transport Services,http://opendatacommunities.org/def/concept/finance/sercop/objective/107,ADECCO UK LIMITED,00593232,14-12-2016,0000063914,509.08,0,Agency staff to cover Parking Assistant,261400,HR Temporary & Agency Staff
South Lakeland District Council,http://opendatacommunities.org/id/district-council/south-lakeland,31/12/2016,Development Implementation,Central Services,http://opendatacommunities.org/def/concept/finance/sercop/objective/102,ADECCO UK LIMITED,00593232,14-12-2016,0000063915,114.8,0,Cleaner for SLDC - ,261400,HR Temporary & Agency Staff
South Lakeland District Council,http://opendatacommunities.org/id/district-council/south-lakeland,31/12/2016,Financial Services,Central Services,http://opendatacommunities.org/def/concept/finance/sercop/objective/102,VENN GROUP RECRUITMENT SOLUTIONS,,19-12-2016,0000063916,1569.91,0,Locum.,261400,HR Temporary & Agency Staff
South Lakeland District Council,http://opendatacommunities.org/id/district-council/south-lakeland,31/12/2016,Electoral Services,Central Services,http://opendatacommunities.org/def/concept/finance/sercop/objective/102,GATES TRAVEL SERVICE,,19-12-2016,0000063917,24.5,0,two train tickets for Cumbria Officer,261600,HR Travel & Subsistence
South Lakeland District Council,http://opendatacommunities.org/id/district-council/south-lakeland,31/12/2016,Development Implementation,Cultural Environmental Regulatory & Planning Services,http://opendatacommunities.org/def/concept/finance/sercop/objective/104,PS BUSINESS MATTERS,08147185,12-12-2016,0000063918,2500,0,Kendal Futures Programme Support,151900,Consultancy Management
South Lakeland District Council,http://opendatacommunities.org/id/district-council/south-lakeland,31/12/2016,Human Resources,Central Services,http://opendatacommunities.org/def/concept/finance/sercop/objective/102,IOSH SERVICES LTD,01816826,12-12-2016,0000063919,270,0,15th November is WS4.0 PACK/233908,221100,Health & Safety� Maintenance
South Lakeland District Council,http://opendatacommunities.org/id/district-council/south-lakeland,31/12/2016,Revenues and Benefits,Central Services,http://opendatacommunities.org/def/concept/finance/sercop/objective/102,BADENOCH & CLARK,1356186,12-12-2016,0000063921,240.03,0,Revs and Bens  (April & May 2016),261300,HR Recruitment & Assessment
South Lakeland District Council,http://opendatacommunities.org/id/district-council/south-lakeland,31/12/2016,Revenues and Benefits,Central Services,http://opendatacommunities.org/def/concept/finance/sercop/objective/102,BADENOCH & CLARK,1356186,14-12-2016,0000063922,186.69,0,Revs and Bens  (April & May 2016),261300,HR Recruitment & Assessment
South Lakeland District Council,http://opendatacommunities.org/id/district-council/south-lakeland,31/12/2016,Leisure and Wellbeing,Cultural Environmental Regulatory & Planning Services,http://opendatacommunities.org/def/concept/finance/sercop/objective/104,Cleartrack (EvL) Ltd,03881690,14-12-2016,0000063927,6000,0,"Main Street, Grange-over-Sands",199999,Facilities Not Elsewhere Classified
South Lakeland District Council,http://opendatacommunities.org/id/district-council/south-lakeland,31/12/2016,Business Support Community Services,Internal Trading Accounts,,MYERSCOUGH COLLEGE,,12-12-2016,0000063929,300,0,Sustainable waste management - ,908999,Public Bodies Not Elsewhere Classified
South Lakeland District Council,http://opendatacommunities.org/id/district-council/south-lakeland,31/12/2016,Business Support Community Services,Internal Trading Accounts,,LANCASTER TRAINING SERVICES LTD,01447612,12-12-2016,0000063930,415,0,Training 2016/17 (SWK),261500,HR Training & Conferences
South Lakeland District Council,http://opendatacommunities.org/id/district-council/south-lakeland,31/12/2016,Business Support Community Services,Internal Trading Accounts,,J R RICHARDSON LTD,02225792,12-12-2016,0000063931,54.49,0,Vehicle washing consumables,381500,Vehicle Mgt Parts
South Lakeland District Council,http://opendatacommunities.org/id/district-council/south-lakeland,31/12/2016,Business Support Community Services,Internal Trading Accounts,,HYDRAIR TRUCK & TRAILER PARTS LTD,,19-12-2016,0000063932,160.1,0,Valve,381500,Vehicle Mgt Parts
South Lakeland District Council,http://opendatacommunities.org/id/district-council/south-lakeland,31/12/2016,Business Support Community Services,Internal Trading Accounts,,HYDRAIR TRUCK & TRAILER PARTS LTD,,19-12-2016,0000063933,174.55,0,Valve,381500,Vehicle Mgt Parts
South Lakeland District Council,http://opendatacommunities.org/id/district-council/south-lakeland,31/12/2016,Business Support Community Services,Internal Trading Accounts,,HYDRAIR TRUCK & TRAILER PARTS LTD,,19-12-2016,0000063934,115,0,Valve,381500,Vehicle Mgt Parts
South Lakeland District Council,http://opendatacommunities.org/id/district-council/south-lakeland,31/12/2016,Social Enterprise Admin,SLDC as Agent,,PAY BY PHONE (PAYPOINT),,14-12-2016,0000063935,186.27,0,Pay-by-phone charges from 1 April 2016,351400,Street & Traffic Traffic Control
South Lakeland District Council,http://opendatacommunities.org/id/district-council/south-lakeland,31/12/2016,Social Enterprise Admin,Cultural Environmental Regulatory & Planning Services,http://opendatacommunities.org/def/concept/finance/sercop/objective/104,Ulverston Community Enterprises Ltd,08904327,19-12-2016,0000063936,33.33,0,Public consultation booking  Thursday,201700,Financial Services Grants
South Lakeland District Council,http://opendatacommunities.org/id/district-council/south-lakeland,31/12/2016,Policy & Partnerships,Central Services,http://opendatacommunities.org/def/concept/finance/sercop/objective/102,Ulverston Community Enterprises Ltd,08904327,14-12-2016,0000063937,50,0,next meeting of Ulverston Emergency,201700,Financial Services Grants
South Lakeland District Council,http://opendatacommunities.org/id/district-council/south-lakeland,31/12/2016,Development Strategy,Cultural Environmental Regulatory & Planning Services,http://opendatacommunities.org/def/concept/finance/sercop/objective/104,Ulverston Community Enterprises Ltd,08904327,19-12-2016,0000063938,60,0,Hire of the Coronation Hall's Ante Room,201700,Financial Services Grants
South Lakeland District Council,http://opendatacommunities.org/id/district-council/south-lakeland,31/12/2016,Business Support Community Services,Housing Services,http://opendatacommunities.org/def/concept/finance/sercop/objective/108,Ashberry Recruitment,07202591,14-12-2016,0000063939,114.75,0,Agency temp at Town View Fields Hostel,261300,HR Recruitment & Assessment
South Lakeland District Council,http://opendatacommunities.org/id/district-council/south-lakeland,31/12/2016,Human Resources,Central Services,http://opendatacommunities.org/def/concept/finance/sercop/objective/102,FLORENCE MADDEN,,14-12-2016,0000063944,2518.68,0,Effective Leadership Programme 8 day,261500,HR Training & Conferences
South Lakeland District Council,http://opendatacommunities.org/id/district-council/south-lakeland,31/12/2016,ICT Group,Central Services,http://opendatacommunities.org/def/concept/finance/sercop/objective/102,PROBRAND LTD,02653446,19-12-2016,0000063945,153.8,0,Wireless Combo MK270 Keyboard and,271600,ICT Software Customised & Bespoke
South Lakeland District Council,http://opendatacommunities.org/id/district-council/south-lakeland,31/12/2016,Environment and Housing,Housing Services,http://opendatacommunities.org/def/concept/finance/sercop/objective/108,The Oyster Partnership,05020374,12-12-2016,0000063946,965.88,0,Agency staff,261300,HR Recruitment & Assessment
South Lakeland District Council,http://opendatacommunities.org/id/district-council/south-lakeland,31/12/2016,Business Support Community Services,Transport Planning Policy,http://opendatacommunities.org/def/concept/finance/sercop/objective/107,ARCO LIMITED,00133804,12-12-2016,0000063947,12.67,0,Cleaning materials,141100,Clothing Protective
South Lakeland District Council,http://opendatacommunities.org/id/district-council/south-lakeland,31/12/2016,Business Support Community Services,Internal Trading Accounts,,ARCO LIMITED,00133804,12-12-2016,0000063947,41.42,0,Cleaning materials,141100,Clothing Protective
South Lakeland District Council,http://opendatacommunities.org/id/district-council/south-lakeland,31/12/2016,Business Support Community Services,Internal Trading Accounts,,ARCO LIMITED,00133804,12-12-2016,0000063947,341.31,0,Cleaning materials,141100,Clothing Protective
South Lakeland District Council,http://opendatacommunities.org/id/district-council/south-lakeland,31/12/2016,Development Implementation,Central Services,http://opendatacommunities.org/def/concept/finance/sercop/objective/102,Brown Toland Brown Associates,,12-12-2016,0000063948,4720,0,Provision of consultancy services for,151000,Consultancy Business
South Lakeland District Council,http://opendatacommunities.org/id/district-council/south-lakeland,31/12/2016,Development Implementation,Cultural Environmental Regulatory & Planning Services,http://opendatacommunities.org/def/concept/finance/sercop/objective/104,THE KNACK DESIGN CONSULTANTS LTD,03966727,12-12-2016,0000063949,3162.5,0,"Kendal Signage incl: Main Map, Walking",190000,Facilities & Management Services
South Lakeland District Council,http://opendatacommunities.org/id/district-council/south-lakeland,31/12/2016,Development Implementation,Planning and Development,,THE KNACK DESIGN CONSULTANTS LTD,03966727,12-12-2016,0000063949,8000,0,"Kendal Signage incl: Main Map, Walking",190000,Facilities & Management Services
South Lakeland District Council,http://opendatacommunities.org/id/district-council/south-lakeland,31/12/2016,Development Implementation,Planning and Development,,LAKES PARISH COUNCIL,,12-12-2016,0000063951,1300,0,EPF Grant - Waterhead Planting,908000,Public Bodies Council support services
South Lakeland District Council,http://opendatacommunities.org/id/district-council/south-lakeland,31/12/2016,Legal Services,Central Services,http://opendatacommunities.org/def/concept/finance/sercop/objective/102,Eventus Legal Recruitment,,12-12-2016,0000063952,255.13,0,Fees for November/December,261300,HR Recruitment & Assessment
South Lakeland District Council,http://opendatacommunities.org/id/district-council/south-lakeland,31/12/2016,Business Support Community Services,Cultural Environmental Regulatory & Planning Services,http://opendatacommunities.org/def/concept/finance/sercop/objective/104,Buckingham Futures,8329499,12-12-2016,0000063953,1225.48,0,Supply 1 Full Time Private Water Officer,182030,Environment Water Assessment & Treatment
South Lakeland District Council,http://opendatacommunities.org/id/district-council/south-lakeland,31/12/2016,Business Support Community Services,Housing Services,http://opendatacommunities.org/def/concept/finance/sercop/objective/108,SOUTH LAKES HOUSING RENT A/C,,12-12-2016,0000063963,156.78,0,Ref: Rent account number -,191700,Facilities Property Management
South Lakeland District Council,http://opendatacommunities.org/id/district-council/south-lakeland,31/12/2016,Business Support Community Services,Housing Services,http://opendatacommunities.org/def/concept/finance/sercop/objective/108,Landlord,,12-12-2016,0000063964,400,0,Monthly rent for ,250000,Housing
South Lakeland District Council,http://opendatacommunities.org/id/district-council/south-lakeland,31/12/2016,Business Support Community Services,Housing Services,http://opendatacommunities.org/def/concept/finance/sercop/objective/108,Landlord,,12-12-2016,0000063965,520,0,Monthly rent ,202000,Financial Services Rents
South Lakeland District Council,http://opendatacommunities.org/id/district-council/south-lakeland,31/12/2016,Business Support Community Services,Housing Services,http://opendatacommunities.org/def/concept/finance/sercop/objective/108,Landlord,,12-12-2016,0000063966,520,0,Monthly rent ,202000,Financial Services Rents
South Lakeland District Council,http://opendatacommunities.org/id/district-council/south-lakeland,31/12/2016,Business Support Community Services,Housing Services,http://opendatacommunities.org/def/concept/finance/sercop/objective/108,Landlord,07121028,12-12-2016,0000063967,400,0,Monthly rent ,202000,Financial Services Rents
South Lakeland District Council,http://opendatacommunities.org/id/district-council/south-lakeland,31/12/2016,Business Support Community Services,Housing Services,http://opendatacommunities.org/def/concept/finance/sercop/objective/108,Landlord,,12-12-2016,0000063968,520,0,"Top Flat, Union Coach House",202000,Financial Services Rents
South Lakeland District Council,http://opendatacommunities.org/id/district-council/south-lakeland,31/12/2016,Business Support Community Services,Housing Services,http://opendatacommunities.org/def/concept/finance/sercop/objective/108,Landlord,,12-12-2016,0000063969,520,0,Monthly rent for ,202000,Financial Services Rents
South Lakeland District Council,http://opendatacommunities.org/id/district-council/south-lakeland,31/12/2016,Business Support Community Services,Housing Services,http://opendatacommunities.org/def/concept/finance/sercop/objective/108,Landlord,,12-12-2016,0000063970,600,0,Monthly rent ,250000,Housing
South Lakeland District Council,http://opendatacommunities.org/id/district-council/south-lakeland,31/12/2016,Environment and Housing,Housing,http://opendatacommunities.org/def/concept/finance/sercop/objective/108,DOLPHIN MOBILITY YORKS & CUMBRIA,,12-12-2016,0000063971,2303.01,0,"Ann Street, Kendal,",321311,Social Care Supplies Equipment
South Lakeland District Council,http://opendatacommunities.org/id/district-council/south-lakeland,31/12/2016,Environment and Housing,Housing,http://opendatacommunities.org/def/concept/finance/sercop/objective/108,A B MITCHELL DEVELOPMENTS LTD,05555489,12-12-2016,0000063972,3701.6,0,"Burneside Road, Kendal, LA9 4RZ",390000,Construction
South Lakeland District Council,http://opendatacommunities.org/id/district-council/south-lakeland,31/12/2016,Social Enterprise Admin,Cultural Environmental Regulatory & Planning Services,http://opendatacommunities.org/def/concept/finance/sercop/objective/104,THOMSON REUTERS (PROFESSIONAL) UK LTD,01679046,14-12-2016,0000063973,1625,0,ENCYCLOPEDIA OF PLANNING LAW YEAR AND,202100,Financial Services Subscriptions
South Lakeland District Council,http://opendatacommunities.org/id/district-council/south-lakeland,31/12/2016,Social Enterprise Admin,Central Services,http://opendatacommunities.org/def/concept/finance/sercop/objective/102,WOOF'S OF SEDBERGH,,14-12-2016,0000063974,175,0,MINI BUS SITE VISITS FOR MEMBERS RE,361300,Public Transport Passenger Transport
South Lakeland District Council,http://opendatacommunities.org/id/district-council/south-lakeland,31/12/2016,Social Enterprise Admin,Cultural Environmental Regulatory & Planning Services,http://opendatacommunities.org/def/concept/finance/sercop/objective/104,RESOLUTION DATA MANAGEMENT LTD,01910045,14-12-2016,0000063975,583.2,0,BUILDING CONTROL ANNUAL SUBSCRIPTION FEE,271600,ICT Software Customised & Bespoke
South Lakeland District Council,http://opendatacommunities.org/id/district-council/south-lakeland,31/12/2016,Social Enterprise Admin,Cultural Environmental Regulatory & Planning Services,http://opendatacommunities.org/def/concept/finance/sercop/objective/104,RESOLUTION DATA MANAGEMENT LTD,01910045,14-12-2016,0000063975,145.8,0,BUILDING CONTROL ANNUAL SUBSCRIPTION FEE,271600,ICT Software Customised & Bespoke
South Lakeland District Council,http://opendatacommunities.org/id/district-council/south-lakeland,31/12/2016,Development Implementation,Cultural Environmental Regulatory & Planning Services,http://opendatacommunities.org/def/concept/finance/sercop/objective/104,WINDERMERE TOWN COUNCIL,,14-12-2016,0000063976,30,0,Reimbursement of Room Hire at Windermere,908000,Public Bodies Council support services
South Lakeland District Council,http://opendatacommunities.org/id/district-council/south-lakeland,31/12/2016,Lake Wardens,Cultural Environmental Regulatory & Planning Services,http://opendatacommunities.org/def/concept/finance/sercop/objective/104,CPC,,14-12-2016,0000063977,48.18,0,1 x 110v GLS Festoon Light Kit.,271200,ICT Hardware
South Lakeland District Council,http://opendatacommunities.org/id/district-council/south-lakeland,31/12/2016,Social Enterprise Admin,Highways & Transport Services,http://opendatacommunities.org/def/concept/finance/sercop/objective/107,CONTINENTAL LANDSCAPES LTD,2108452,14-12-2016,0000063978,12.15,0,Parks Routine maintenance,391310,Construction Open Spaces Construction
South Lakeland District Council,http://opendatacommunities.org/id/district-council/south-lakeland,31/12/2016,Social Enterprise Admin,Highways & Transport Services,http://opendatacommunities.org/def/concept/finance/sercop/objective/107,CONTINENTAL LANDSCAPES LTD,2108452,14-12-2016,0000063978,12.15,0,Parks Routine maintenance,391310,Construction Open Spaces Construction
South Lakeland District Council,http://opendatacommunities.org/id/district-council/south-lakeland,31/12/2016,Social Enterprise Admin,Highways & Transport Services,http://opendatacommunities.org/def/concept/finance/sercop/objective/107,CONTINENTAL LANDSCAPES LTD,2108452,14-12-2016,0000063978,1.22,0,Parks Routine maintenance,391310,Construction Open Spaces Construction
South Lakeland District Council,http://opendatacommunities.org/id/district-council/south-lakeland,31/12/2016,Social Enterprise Admin,Highways & Transport Services,http://opendatacommunities.org/def/concept/finance/sercop/objective/107,CONTINENTAL LANDSCAPES LTD,2108452,14-12-2016,0000063978,12.15,0,Parks Routine maintenance,391310,Construction Open Spaces Construction
South Lakeland District Council,http://opendatacommunities.org/id/district-council/south-lakeland,31/12/2016,Social Enterprise Admin,Highways & Transport Services,http://opendatacommunities.org/def/concept/finance/sercop/objective/107,CONTINENTAL LANDSCAPES LTD,2108452,14-12-2016,0000063978,12.15,0,Parks Routine maintenance,391310,Construction Open Spaces Construction
South Lakeland District Council,http://opendatacommunities.org/id/district-council/south-lakeland,31/12/2016,Social Enterprise Admin,Highways & Transport Services,http://opendatacommunities.org/def/concept/finance/sercop/objective/107,CONTINENTAL LANDSCAPES LTD,2108452,14-12-2016,0000063978,12.15,0,Parks Routine maintenance,391310,Construction Open Spaces Construction
South Lakeland District Council,http://opendatacommunities.org/id/district-council/south-lakeland,31/12/2016,Social Enterprise Admin,Highways & Transport Services,http://opendatacommunities.org/def/concept/finance/sercop/objective/107,CONTINENTAL LANDSCAPES LTD,2108452,14-12-2016,0000063978,36.46,0,Parks Routine maintenance,391310,Construction Open Spaces Construction
South Lakeland District Council,http://opendatacommunities.org/id/district-council/south-lakeland,31/12/2016,Social Enterprise Admin,Highways & Transport Services,http://opendatacommunities.org/def/concept/finance/sercop/objective/107,CONTINENTAL LANDSCAPES LTD,2108452,14-12-2016,0000063978,243.05,0,Parks Routine maintenance,391310,Construction Open Spaces Construction
South Lakeland District Council,http://opendatacommunities.org/id/district-council/south-lakeland,31/12/2016,Social Enterprise Admin,Highways & Transport Services,http://opendatacommunities.org/def/concept/finance/sercop/objective/107,CONTINENTAL LANDSCAPES LTD,2108452,14-12-2016,0000063978,151.91,0,Parks Routine maintenance,391310,Construction Open Spaces Construction
South Lakeland District Council,http://opendatacommunities.org/id/district-council/south-lakeland,31/12/2016,Social Enterprise Admin,Highways & Transport Services,http://opendatacommunities.org/def/concept/finance/sercop/objective/107,CONTINENTAL LANDSCAPES LTD,2108452,14-12-2016,0000063978,6.08,0,Parks Routine maintenance,391310,Construction Open Spaces Construction
South Lakeland District Council,http://opendatacommunities.org/id/district-council/south-lakeland,31/12/2016,Social Enterprise Admin,Highways & Transport Services,http://opendatacommunities.org/def/concept/finance/sercop/objective/107,CONTINENTAL LANDSCAPES LTD,2108452,14-12-2016,0000063978,60.76,0,Parks Routine maintenance,391310,Construction Open Spaces Construction
South Lakeland District Council,http://opendatacommunities.org/id/district-council/south-lakeland,31/12/2016,Social Enterprise Admin,Highways & Transport Services,http://opendatacommunities.org/def/concept/finance/sercop/objective/107,CONTINENTAL LANDSCAPES LTD,2108452,14-12-2016,0000063978,60.76,0,Parks Routine maintenance,391310,Construction Open Spaces Construction
South Lakeland District Council,http://opendatacommunities.org/id/district-council/south-lakeland,31/12/2016,Social Enterprise Admin,Highways & Transport Services,http://opendatacommunities.org/def/concept/finance/sercop/objective/107,CONTINENTAL LANDSCAPES LTD,2108452,14-12-2016,0000063978,121.53,0,Parks Routine maintenance,391310,Construction Open Spaces Construction
South Lakeland District Council,http://opendatacommunities.org/id/district-council/south-lakeland,31/12/2016,Social Enterprise Admin,Highways & Transport Services,http://opendatacommunities.org/def/concept/finance/sercop/objective/107,CONTINENTAL LANDSCAPES LTD,2108452,14-12-2016,0000063978,48.61,0,Parks Routine maintenance,391310,Construction Open Spaces Construction
South Lakeland District Council,http://opendatacommunities.org/id/district-council/south-lakeland,31/12/2016,Social Enterprise Admin,Highways & Transport Services,http://opendatacommunities.org/def/concept/finance/sercop/objective/107,CONTINENTAL LANDSCAPES LTD,2108452,14-12-2016,0000063978,6.08,0,Parks Routine maintenance,391310,Construction Open Spaces Construction
South Lakeland District Council,http://opendatacommunities.org/id/district-council/south-lakeland,31/12/2016,Social Enterprise Admin,Highways & Transport Services,http://opendatacommunities.org/def/concept/finance/sercop/objective/107,CONTINENTAL LANDSCAPES LTD,2108452,14-12-2016,0000063978,6.08,0,Parks Routine maintenance,391310,Construction Open Spaces Construction
South Lakeland District Council,http://opendatacommunities.org/id/district-council/south-lakeland,31/12/2016,Social Enterprise Admin,Highways & Transport Services,http://opendatacommunities.org/def/concept/finance/sercop/objective/107,CONTINENTAL LANDSCAPES LTD,2108452,14-12-2016,0000063978,3.04,0,Parks Routine maintenance,391310,Construction Open Spaces Construction
South Lakeland District Council,http://opendatacommunities.org/id/district-council/south-lakeland,31/12/2016,Social Enterprise Admin,Highways & Transport Services,http://opendatacommunities.org/def/concept/finance/sercop/objective/107,CONTINENTAL LANDSCAPES LTD,2108452,14-12-2016,0000063978,54.69,0,Parks Routine maintenance,391310,Construction Open Spaces Construction
South Lakeland District Council,http://opendatacommunities.org/id/district-council/south-lakeland,31/12/2016,Social Enterprise Admin,Highways & Transport Services,http://opendatacommunities.org/def/concept/finance/sercop/objective/107,CONTINENTAL LANDSCAPES LTD,2108452,14-12-2016,0000063978,66.84,0,Parks Routine maintenance,391310,Construction Open Spaces Construction
South Lakeland District Council,http://opendatacommunities.org/id/district-council/south-lakeland,31/12/2016,Social Enterprise Admin,Highways & Transport Services,http://opendatacommunities.org/def/concept/finance/sercop/objective/107,CONTINENTAL LANDSCAPES LTD,2108452,14-12-2016,0000063978,127.6,0,Parks Routine maintenance,391310,Construction Open Spaces Construction
South Lakeland District Council,http://opendatacommunities.org/id/district-council/south-lakeland,31/12/2016,Social Enterprise Admin,Highways & Transport Services,http://opendatacommunities.org/def/concept/finance/sercop/objective/107,CONTINENTAL LANDSCAPES LTD,2108452,14-12-2016,0000063978,121.53,0,Parks Routine maintenance,391310,Construction Open Spaces Construction
South Lakeland District Council,http://opendatacommunities.org/id/district-council/south-lakeland,31/12/2016,Social Enterprise Admin,Highways & Transport Services,http://opendatacommunities.org/def/concept/finance/sercop/objective/107,CONTINENTAL LANDSCAPES LTD,2108452,14-12-2016,0000063978,12.15,0,Parks Routine maintenance,391310,Construction Open Spaces Construction
South Lakeland District Council,http://opendatacommunities.org/id/district-council/south-lakeland,31/12/2016,Social Enterprise Admin,Highways & Transport Services,http://opendatacommunities.org/def/concept/finance/sercop/objective/107,CONTINENTAL LANDSCAPES LTD,2108452,14-12-2016,0000063978,12.15,0,Parks Routine maintenance,391310,Construction Open Spaces Construction
South Lakeland District Council,http://opendatacommunities.org/id/district-council/south-lakeland,31/12/2016,Social Enterprise Admin,Highways & Transport Services,http://opendatacommunities.org/def/concept/finance/sercop/objective/107,CONTINENTAL LANDSCAPES LTD,2108452,14-12-2016,0000063978,36.46,0,Parks Routine maintenance,391310,Construction Open Spaces Construction
South Lakeland District Council,http://opendatacommunities.org/id/district-council/south-lakeland,31/12/2016,Social Enterprise Admin,Highways & Transport Services,http://opendatacommunities.org/def/concept/finance/sercop/objective/107,CONTINENTAL LANDSCAPES LTD,2108452,14-12-2016,0000063978,60.76,0,Parks Routine maintenance,391310,Construction Open Spaces Construction
South Lakeland District Council,http://opendatacommunities.org/id/district-council/south-lakeland,31/12/2016,Social Enterprise Admin,Highways & Transport Services,http://opendatacommunities.org/def/concept/finance/sercop/objective/107,CONTINENTAL LANDSCAPES LTD,2108452,14-12-2016,0000063978,60.76,0,Parks Routine maintenance,391310,Construction Open Spaces Construction
South Lakeland District Council,http://opendatacommunities.org/id/district-council/south-lakeland,31/12/2016,Social Enterprise Admin,Highways & Transport Services,http://opendatacommunities.org/def/concept/finance/sercop/objective/107,CONTINENTAL LANDSCAPES LTD,2108452,14-12-2016,0000063978,108.1,0,Parks Routine maintenance,391310,Construction Open Spaces Construction
South Lakeland District Council,http://opendatacommunities.org/id/district-council/south-lakeland,31/12/2016,Social Enterprise Admin,Highways & Transport Services,http://opendatacommunities.org/def/concept/finance/sercop/objective/107,CONTINENTAL LANDSCAPES LTD,2108452,14-12-2016,0000063978,121.53,0,Parks Routine maintenance,391310,Construction Open Spaces Construction
South Lakeland District Council,http://opendatacommunities.org/id/district-council/south-lakeland,31/12/2016,Social Enterprise Admin,Highways & Transport Services,http://opendatacommunities.org/def/concept/finance/sercop/objective/107,CONTINENTAL LANDSCAPES LTD,2108452,14-12-2016,0000063978,224.83,0,Parks Routine maintenance,391310,Construction Open Spaces Construction
South Lakeland District Council,http://opendatacommunities.org/id/district-council/south-lakeland,31/12/2016,Social Enterprise Admin,Highways & Transport Services,http://opendatacommunities.org/def/concept/finance/sercop/objective/107,CONTINENTAL LANDSCAPES LTD,2108452,14-12-2016,0000063978,121.53,0,Parks Routine maintenance,391310,Construction Open Spaces Construction
South Lakeland District Council,http://opendatacommunities.org/id/district-council/south-lakeland,31/12/2016,Social Enterprise Admin,Highways & Transport Services,http://opendatacommunities.org/def/concept/finance/sercop/objective/107,CONTINENTAL LANDSCAPES LTD,2108452,14-12-2016,0000063978,182.29,0,Parks Routine maintenance,391310,Construction Open Spaces Construction
South Lakeland District Council,http://opendatacommunities.org/id/district-council/south-lakeland,31/12/2016,Social Enterprise Admin,Cultural Environmental Regulatory & Planning Services,http://opendatacommunities.org/def/concept/finance/sercop/objective/104,CONTINENTAL LANDSCAPES LTD,2108452,14-12-2016,0000063978,9722.17,0,Parks Routine maintenance,391310,Construction Open Spaces Construction
South Lakeland District Council,http://opendatacommunities.org/id/district-council/south-lakeland,31/12/2016,Social Enterprise Admin,Cultural Environmental Regulatory & Planning Services,http://opendatacommunities.org/def/concept/finance/sercop/objective/104,CONTINENTAL LANDSCAPES LTD,2108452,14-12-2016,0000063978,24.31,0,Parks Routine maintenance,391310,Construction Open Spaces Construction
South Lakeland District Council,http://opendatacommunities.org/id/district-council/south-lakeland,31/12/2016,Social Enterprise Admin,Cultural Environmental Regulatory & Planning Services,http://opendatacommunities.org/def/concept/finance/sercop/objective/104,CONTINENTAL LANDSCAPES LTD,2108452,14-12-2016,0000063978,46119.57,0,Parks Routine maintenance,391310,Construction Open Spaces Construction
South Lakeland District Council,http://opendatacommunities.org/id/district-council/south-lakeland,31/12/2016,Social Enterprise Admin,Cultural Environmental Regulatory & Planning Services,http://opendatacommunities.org/def/concept/finance/sercop/objective/104,CONTINENTAL LANDSCAPES LTD,2108452,14-12-2016,0000063978,364.58,0,Parks Routine maintenance,391310,Construction Open Spaces Construction
South Lakeland District Council,http://opendatacommunities.org/id/district-council/south-lakeland,31/12/2016,Social Enterprise Admin,Cultural Environmental Regulatory & Planning Services,http://opendatacommunities.org/def/concept/finance/sercop/objective/104,CONTINENTAL LANDSCAPES LTD,2108452,14-12-2016,0000063978,2309.02,0,Parks Routine maintenance,391310,Construction Open Spaces Construction
South Lakeland District Council,http://opendatacommunities.org/id/district-council/south-lakeland,31/12/2016,Social Enterprise Admin,External Trading Accounts,,CONTINENTAL LANDSCAPES LTD,2108452,14-12-2016,0000063978,106.34,0,Parks Routine maintenance,391310,Construction Open Spaces Construction
South Lakeland District Council,http://opendatacommunities.org/id/district-council/south-lakeland,31/12/2016,Social Enterprise Admin,Cultural Environmental Regulatory & Planning Services,http://opendatacommunities.org/def/concept/finance/sercop/objective/104,CONTINENTAL LANDSCAPES LTD,2108452,19-12-2016,0000063979,16000,0,For disposal of waste to Kendal Fell,391310,Construction Open Spaces Construction
South Lakeland District Council,http://opendatacommunities.org/id/district-council/south-lakeland,31/12/2016,Social Enterprise Admin,Cultural Environmental Regulatory & Planning Services,http://opendatacommunities.org/def/concept/finance/sercop/objective/104,CONTINENTAL LANDSCAPES LTD,2108452,19-12-2016,0000063980,3647.15,0,Gravedigging  for April 2016 -March 2017,391310,Construction Open Spaces Construction
South Lakeland District Council,http://opendatacommunities.org/id/district-council/south-lakeland,31/12/2016,Development Implementation,Cultural Environmental Regulatory & Planning Services,http://opendatacommunities.org/def/concept/finance/sercop/objective/104,CUMBRIA COUNTY COUNCIL,,19-12-2016,0000063981,4860,0,Design & Installation of Kendal Brown &,908000,Public Bodies Council support services
South Lakeland District Council,http://opendatacommunities.org/id/district-council/south-lakeland,31/12/2016,Development Implementation,Cultural Environmental Regulatory & Planning Services,http://opendatacommunities.org/def/concept/finance/sercop/objective/104,CUMBRIA COUNTY COUNCIL,,19-12-2016,0000063981,11418.64,0,Design & Installation of Kendal Brown &,908000,Public Bodies Council support services
South Lakeland District Council,http://opendatacommunities.org/id/district-council/south-lakeland,31/12/2016,Development Implementation,Planning and Development,,CUMBRIA COUNTY COUNCIL,,19-12-2016,0000063981,1500,0,Design & Installation of Kendal Brown &,908000,Public Bodies Council support services
South Lakeland District Council,http://opendatacommunities.org/id/district-council/south-lakeland,31/12/2016,Legal Services,Central Services,http://opendatacommunities.org/def/concept/finance/sercop/objective/102,THOMSON REUTERS (PROFESSIONAL) UK LTD,01679046,19-12-2016,0000063982,1065,0,Cost of 2017 Enc. of LL Local Govt Law,202100,Financial Services Subscriptions
South Lakeland District Council,http://opendatacommunities.org/id/district-council/south-lakeland,31/12/2016,Revenues and Benefits,SLDC as Agent,,ROYAL MAIL GROUP PLC,,19-12-2016,0000063983,1160.92,0,2016 - 17  Postal Charges a/c 0198123013,301200,Mail Services� Postage
South Lakeland District Council,http://opendatacommunities.org/id/district-council/south-lakeland,31/12/2016,Social Enterprise Admin,Highways & Transport Services,http://opendatacommunities.org/def/concept/finance/sercop/objective/107,G4S SECURE SOLUTIONS (UK) LTD,01046019,19-12-2016,0000063984,874.84,0,Patrol Services for South Lakeland House,192213,Facilities Security Manned Guarding
South Lakeland District Council,http://opendatacommunities.org/id/district-council/south-lakeland,31/12/2016,Development Implementation,Cultural Environmental Regulatory & Planning Services,http://opendatacommunities.org/def/concept/finance/sercop/objective/104,WiFi Spark Ltd,,19-12-2016,0000063986,402.18,0,Kendal Town Centre Wifi - 12 months,271800,ICT Telecommunications Mobile
South Lakeland District Council,http://opendatacommunities.org/id/district-council/south-lakeland,31/12/2016,Human Resources,Central Services,http://opendatacommunities.org/def/concept/finance/sercop/objective/102,HFX LIMITED,08137794,19-12-2016,0000063988,988.9,0,Flexi access swipe cards,261200,HR Professional & Advisory Services
South Lakeland District Council,http://opendatacommunities.org/id/district-council/south-lakeland,31/12/2016,Legal Services,Central Services,http://opendatacommunities.org/def/concept/finance/sercop/objective/102,NEWSQUEST MEDIA GROUP LTD,03102566,19-12-2016,0000063989,504,0,Advert re:  Local Auth. (Members,191000,Facilities Advertising
South Lakeland District Council,http://opendatacommunities.org/id/district-council/south-lakeland,31/12/2016,Customer Services,Cultural Environmental Regulatory & Planning Services,http://opendatacommunities.org/def/concept/finance/sercop/objective/104,NEWSQUEST MEDIA GROUP LTD,03102566,19-12-2016,0000063991,750,0,2  half pages of ads for The battling,191000,Facilities Advertising
South Lakeland District Council,http://opendatacommunities.org/id/district-council/south-lakeland,31/12/2016,Development Management,Cultural Environmental Regulatory & Planning Services,http://opendatacommunities.org/def/concept/finance/sercop/objective/104,CRUDEN PROPERTY SERVICES LTD,03851237,19-12-2016,0000063992,724.5,0,supply of harris fencing to Allhallows,391111,Construction Buildings Repair & Mtce
South Lakeland District Council,http://opendatacommunities.org/id/district-council/south-lakeland,31/12/2016,Customer Services,Central Services,http://opendatacommunities.org/def/concept/finance/sercop/objective/102,STEVEN BARBER PHOTOGRAPHY LTD,06058535,19-12-2016,0000063993,300,0,photography for south lakeland news,191100,Facilities Design & Photography
South Lakeland District Council,http://opendatacommunities.org/id/district-council/south-lakeland,31/12/2016,Revenues and Benefits,Central Services,http://opendatacommunities.org/def/concept/finance/sercop/objective/102,WEIGHTMANS LLP,OC326117,19-12-2016,0000063994,613.5,0,Recovery from ,281300,Legal Services Legal Opinion
South Lakeland District Council,http://opendatacommunities.org/id/district-council/south-lakeland,31/12/2016,Business Support Community Services,Housing Services,http://opendatacommunities.org/def/concept/finance/sercop/objective/108,NOWMEDICAL,04338252,19-12-2016,0000063995,85,0,Medical advice,311600,Healthcare Services
South Lakeland District Council,http://opendatacommunities.org/id/district-council/south-lakeland,31/12/2016,Financial Services,Central Services,http://opendatacommunities.org/def/concept/finance/sercop/objective/102,CIPP,04227998,19-12-2016,0000063996,135,0,Membership fee M02061746,261500,HR Training & Conferences
South Lakeland District Council,http://opendatacommunities.org/id/district-council/south-lakeland,31/12/2016,Human Resources,Central Services,http://opendatacommunities.org/def/concept/finance/sercop/objective/102,FORBES SOLICITORS,,19-12-2016,0000063997,132,0,Forbes invoice 27/9 - 25/11,281300,Legal Services Legal Opinion
South Lakeland District Council,http://opendatacommunities.org/id/district-council/south-lakeland,31/12/2016,ICT Group,Central Services,http://opendatacommunities.org/def/concept/finance/sercop/objective/102,DAISY COMMUNICATIONS LTD,04145329,19-12-2016,0000063998,831.32,0,Daisy Line Rental Charges,271700,ICT Telecommunications Fixed
South Lakeland District Council,http://opendatacommunities.org/id/district-council/south-lakeland,31/12/2016,Environment and Housing,Central Services,http://opendatacommunities.org/def/concept/finance/sercop/objective/102,CHARTERED INSTITUTE OF HOUSING,,19-12-2016,0000063999,296,0,Membership fee CIH,202100,Financial Services Subscriptions
South Lakeland District Council,http://opendatacommunities.org/id/district-council/south-lakeland,31/12/2016,Environment and Housing,Central Services,http://opendatacommunities.org/def/concept/finance/sercop/objective/102,CHARTERED INSTITUTE OF HOUSING,,19-12-2016,0000064000,296,0,Membership fee CIH,202100,Financial Services Subscriptions
South Lakeland District Council,http://opendatacommunities.org/id/district-council/south-lakeland,31/12/2016,Business Support Community Services,Housing Services,http://opendatacommunities.org/def/concept/finance/sercop/objective/108,Landlord,,14-12-2016,0000064001,890,0,Monthly rent for Flats ,250000,Housing
South Lakeland District Council,http://opendatacommunities.org/id/district-council/south-lakeland,31/12/2016,Business Support Community Services,Housing Services,http://opendatacommunities.org/def/concept/finance/sercop/objective/108,Landlord,08672920,14-12-2016,0000064002,400,0,Monthly rent,202000,Financial Services Rents
South Lakeland District Council,http://opendatacommunities.org/id/district-council/south-lakeland,31/12/2016,Business Support Community Services,Housing Services,http://opendatacommunities.org/def/concept/finance/sercop/objective/108,Landlord,,14-12-2016,0000064003,520,0,Monthly rent ,250010,Housing Letting Agents
South Lakeland District Council,http://opendatacommunities.org/id/district-council/south-lakeland,31/12/2016,Development Implementation,Central Services,http://opendatacommunities.org/def/concept/finance/sercop/objective/102,NPS NORTH WEST LTD,06614601,14-12-2016,0000064004,7064.55,0,Brodgen St Toilet UTC Office,391110,Construction Buildings Construction
South Lakeland District Council,http://opendatacommunities.org/id/district-council/south-lakeland,31/12/2016,Development Implementation,Central Services,http://opendatacommunities.org/def/concept/finance/sercop/objective/102,NPS NORTH WEST LTD,06614601,14-12-2016,0000064005,-664.5,0,Brodgen St Toilet UTC Office,391110,Construction Buildings Construction
South Lakeland District Council,http://opendatacommunities.org/id/district-council/south-lakeland,31/12/2016,Policy & Partnerships,Central Services,http://opendatacommunities.org/def/concept/finance/sercop/objective/102,CUMBRIA COUNTY COUNCIL,,19-12-2016,0000064009,854.9,0,CACI License renewal 2016-17,908000,Public Bodies Council support services
South Lakeland District Council,http://opendatacommunities.org/id/district-council/south-lakeland,31/12/2016,Business Support Community Services,Cultural Environmental Regulatory & Planning Services,http://opendatacommunities.org/def/concept/finance/sercop/objective/104,JEWSON LIMITED,00348407,19-12-2016,0000064010,8.54,0,Fixtures & fittings 2016/17,101400,Building General Materials
South Lakeland District Council,http://opendatacommunities.org/id/district-council/south-lakeland,31/12/2016,Human Resources,Cultural Environmental Regulatory & Planning Services,http://opendatacommunities.org/def/concept/finance/sercop/objective/104,CHARTERED INST OF ENVIRONMNTL HLTH,,19-12-2016,0000064011,750,0,Environmental Health Officer vacancy,202100,Financial Services Subscriptions
South Lakeland District Council,http://opendatacommunities.org/id/district-council/south-lakeland,31/12/2016,Financial Services,Housing Benefit Payments,,GRANT THORNTON UK LLP,OC307742,19-12-2016,0000064012,5082,0,Grant Certification re HB 'CT Benefits,201000,Financial Services Accountancy
South Lakeland District Council,http://opendatacommunities.org/id/district-council/south-lakeland,31/12/2016,Business Support Community Services,Cultural Environmental Regulatory & Planning Services,http://opendatacommunities.org/def/concept/finance/sercop/objective/104,INTELLIGENT DATA SYSTEMS (UK) LTD,05148878,19-12-2016,0000064013,57.5,0,IDS checks for Taxi Drivers,271510,ICT Application Service Provision
South Lakeland District Council,http://opendatacommunities.org/id/district-council/south-lakeland,31/12/2016,Revenues and Benefits,,,Ulverston BID Company Ltd,09761005,19-12-2016,0000064014,35340.44,0,Collection figures for November 2016,201700,Financial Services Grants
South Lakeland District Council,http://opendatacommunities.org/id/district-council/south-lakeland,31/12/2016,Development Implementation,Central Services,http://opendatacommunities.org/def/concept/finance/sercop/objective/102,HYGIENE CLEANING SUPPLIES LTD,04753934,19-12-2016,0000064015,29.52,0,Additional Cleaning Supplies for SL,131011,Cleaning & Janitorial Cleaning Materials
South Lakeland District Council,http://opendatacommunities.org/id/district-council/south-lakeland,31/12/2016,Development Implementation,Cultural Environmental Regulatory & Planning Services,http://opendatacommunities.org/def/concept/finance/sercop/objective/104,Agency,,19-12-2016,0000064016,203.05,0,Reception Duties ,191010,Facilities Advertising Promo & Recruit
South Lakeland District Council,http://opendatacommunities.org/id/district-council/south-lakeland,31/12/2016,Business Support Community Services,Housing Services,http://opendatacommunities.org/def/concept/finance/sercop/objective/108,Landlord,,14-12-2016,0000064019,1190,0,Monthly rent,202000,Financial Services Rents
South Lakeland District Council,http://opendatacommunities.org/id/district-council/south-lakeland,31/12/2016,Financial Services,SLDC as Agent,,KIRKLAND TRUST (KENDAL),,14-12-2016,0000064030,4774.55,0,2016/17 Income,201700,Financial Services Grants
South Lakeland District Council,http://opendatacommunities.org/id/district-council/south-lakeland,31/12/2016,Environment and Housing,Housing,http://opendatacommunities.org/def/concept/finance/sercop/objective/108,Kendal Building Company,0348755,14-12-2016,0000064031,21761.46,0,"Moorside, Flookburgh,",101400,Building General Materials
South Lakeland District Council,http://opendatacommunities.org/id/district-council/south-lakeland,31/12/2016,Environment and Housing,Housing,http://opendatacommunities.org/def/concept/finance/sercop/objective/108,ENVIRONMENT & HOUSING GRANTS,,14-12-2016,0000064032,3036,0,Disabled Adaptations at Greenbanks,201700,Financial Services Grants
South Lakeland District Council,http://opendatacommunities.org/id/district-council/south-lakeland,31/12/2016,Environment and Housing,Housing,http://opendatacommunities.org/def/concept/finance/sercop/objective/108,ENVIRONMENT & HOUSING GRANTS,,14-12-2016,0000064033,828,0,"Greenbank Gardens, Little Urswick,",201700,Financial Services Grants
South Lakeland District Council,http://opendatacommunities.org/id/district-council/south-lakeland,31/12/2016,Business Support Community Services,Internal Trading Accounts,,ARCO LIMITED,00133804,19-12-2016,0000064034,61.27,0,Cleaning materials,141100,Clothing Protective
South Lakeland District Council,http://opendatacommunities.org/id/district-council/south-lakeland,31/12/2016,Business Support Community Services,Internal Trading Accounts,,VOLVO GROUP UK LTD,02190944,19-12-2016,0000064035,2500,0,Part,381000,Vehicle Mgt Commercial
South Lakeland District Council,http://opendatacommunities.org/id/district-council/south-lakeland,31/12/2016,Business Support Community Services,Internal Trading Accounts,,ARCO LIMITED,00133804,19-12-2016,0000064036,53.29,0,Cleaning materials,141100,Clothing Protective
South Lakeland District Council,http://opendatacommunities.org/id/district-council/south-lakeland,31/12/2016,Financial Services,Central Services,http://opendatacommunities.org/def/concept/finance/sercop/objective/102,EXAPRINT,08032272,19-12-2016,0000064037,1334.7,0,LaserServe training on-site ,191600,Facilities Printing
South Lakeland District Council,http://opendatacommunities.org/id/district-council/south-lakeland,31/12/2016,Business Support Community Services,Internal Trading Accounts,,Preston Trade Parts Specialists,,19-12-2016,0000064038,112.55,0,Switch,381400,Vehicle Mgt Maintenance
South Lakeland District Council,http://opendatacommunities.org/id/district-council/south-lakeland,31/12/2016,Business Support Community Services,Internal Trading Accounts,,Preston Trade Parts Specialists,,19-12-2016,0000064038,65.96,0,Switch,381400,Vehicle Mgt Maintenance
South Lakeland District Council,http://opendatacommunities.org/id/district-council/south-lakeland,31/12/2016,Business Support Community Services,Internal Trading Accounts,,TAYLOR ENGINEERING & FABRICATIONS LTD,04989359,19-12-2016,0000064040,706.95,0,Seals,391200,Construction Engineering
South Lakeland District Council,http://opendatacommunities.org/id/district-council/south-lakeland,31/12/2016,Business Support Community Services,Internal Trading Accounts,,ALAN MYERSCOUGH LTD,02027076,19-12-2016,0000064041,250,0,Repair SL078,381400,Vehicle Mgt Maintenance
South Lakeland District Council,http://opendatacommunities.org/id/district-council/south-lakeland,31/12/2016,Business Support Community Services,Internal Trading Accounts,,METCALFE BROS LTD,05899629,19-12-2016,0000064042,5407.5,0,Sweeper hire - 01/09/16 - 31/03/17,381200,Vehicle Mgt Heavy Constr Equip Leasing
South Lakeland District Council,http://opendatacommunities.org/id/district-council/south-lakeland,31/12/2016,Business Support Community Services,Internal Trading Accounts,,BRIAN ARMISTEAD LTD T/A SINKFALL RECYCLI,04133280,19-12-2016,0000064043,760.55,0,Green waste tipping - 2016/17,391110,Construction Buildings Construction
South Lakeland District Council,http://opendatacommunities.org/id/district-council/south-lakeland,31/12/2016,Human Resources,Central Services,http://opendatacommunities.org/def/concept/finance/sercop/objective/102,IOSH SERVICES LTD,01816826,19-12-2016,0000064044,150,0,IOSH Managing Safely 1st November,221100,Health & Safety� Maintenance
South Lakeland District Council,http://opendatacommunities.org/id/district-council/south-lakeland,31/12/2016,Business Support Community Services,Housing Services,http://opendatacommunities.org/def/concept/finance/sercop/objective/108,Ashberry Recruitment,07202591,19-12-2016,0000064045,101.25,0,Agency temp at Town View Fields Hostel,261300,HR Recruitment & Assessment
South Lakeland District Council,http://opendatacommunities.org/id/district-council/south-lakeland,31/12/2016,Development Implementation,Central Services,http://opendatacommunities.org/def/concept/finance/sercop/objective/102,ADECCO UK LIMITED,00593232,19-12-2016,0000064046,114.8,0,Cleaner for SLDC -,261400,HR Temporary & Agency Staff
South Lakeland District Council,http://opendatacommunities.org/id/district-council/south-lakeland,31/12/2016,Social Enterprise Admin,Cultural Environmental Regulatory & Planning Services,http://opendatacommunities.org/def/concept/finance/sercop/objective/104,North Country Leisure,03683103,19-12-2016,0000064047,62986.5,0,Leisure Contract 2016/17,291400,Arts & Leisure Services Sport & Fitness
South Lakeland District Council,http://opendatacommunities.org/id/district-council/south-lakeland,31/12/2016,Development Strategy,Cultural Environmental Regulatory & Planning Services,http://opendatacommunities.org/def/concept/finance/sercop/objective/104,RIVERBANK HOSPITALITY CATERING,,19-12-2016,0000064048,67.15,0,17 x Simple Selection Lunch Packages on,111000,Catering Banquet & Catering
South Lakeland District Council,http://opendatacommunities.org/id/district-council/south-lakeland,31/12/2016,Cemeteries Office,Cultural Environmental Regulatory & Planning Services,http://opendatacommunities.org/def/concept/finance/sercop/objective/104,CUMBRIA WASTE RECYCLING LTD,03162439,19-12-2016,0000064054,59.77,0,SLDC Cemetery waste bin emptying from,182012,Environment Waste Management Recycling
South Lakeland District Council,http://opendatacommunities.org/id/district-council/south-lakeland,31/12/2016,Cemeteries Office,Cultural Environmental Regulatory & Planning Services,http://opendatacommunities.org/def/concept/finance/sercop/objective/104,CUMBRIA WASTE RECYCLING LTD,03162439,19-12-2016,0000064055,71.77,0,SLDC Cemetery waste bin emptying from,182012,Environment Waste Management Recycling
South Lakeland District Council,http://opendatacommunities.org/id/district-council/south-lakeland,31/12/2016,Cemeteries Office,Cultural Environmental Regulatory & Planning Services,http://opendatacommunities.org/def/concept/finance/sercop/objective/104,CUMBRIA WASTE RECYCLING LTD,03162439,19-12-2016,0000064056,63.6,0,SLDC Cemetery waste bin emptying from,182012,Environment Waste Management Recycling
South Lakeland District Council,http://opendatacommunities.org/id/district-council/south-lakeland,31/12/2016,Cemeteries Office,Cultural Environmental Regulatory & Planning Services,http://opendatacommunities.org/def/concept/finance/sercop/objective/104,CUMBRIA WASTE RECYCLING LTD,03162439,19-12-2016,0000064058,103.8,0,SLDC Cemetery waste bin emptying from,182012,Environment Waste Management Recycling
South Lakeland District Council,http://opendatacommunities.org/id/district-council/south-lakeland,31/12/2016,Social Enterprise Admin,Central Services,http://opendatacommunities.org/def/concept/finance/sercop/objective/102,CUMBRIA WASTE RECYCLING LTD,03162439,19-12-2016,0000064059,266.82,0,SLH Wheelie bin and skip emptying,182012,Environment Waste Management Recycling
South Lakeland District Council,http://opendatacommunities.org/id/district-council/south-lakeland,31/12/2016,Kendal Town Hall,Cultural Environmental Regulatory & Planning Services,http://opendatacommunities.org/def/concept/finance/sercop/objective/104,CUMBRIA WASTE RECYCLING LTD,03162439,21-12-2016,0000064060,175.9,0,Weekly collection of bins for KTH,182012,Environment Waste Management Recycling
South Lakeland District Council,http://opendatacommunities.org/id/district-council/south-lakeland,31/12/2016,Social Enterprise Admin,Central Services,http://opendatacommunities.org/def/concept/finance/sercop/objective/102,CUMBRIA WASTE RECYCLING LTD,03162439,19-12-2016,0000064061,53.18,0,1100 wheelie bin for Town Hall Queen,182012,Environment Waste Management Recycling
South Lakeland District Council,http://opendatacommunities.org/id/district-council/south-lakeland,31/12/2016,Cemeteries Office,Cultural Environmental Regulatory & Planning Services,http://opendatacommunities.org/def/concept/finance/sercop/objective/104,CUMBRIA WASTE RECYCLING LTD,03162439,19-12-2016,0000064064,27.6,0,SLDC Cemetery waste bin emptying from,182012,Environment Waste Management Recycling
South Lakeland District Council,http://opendatacommunities.org/id/district-council/south-lakeland,31/12/2016,Social Enterprise Admin,Highways & Transport Services,http://opendatacommunities.org/def/concept/finance/sercop/objective/107,CUMBRIA WASTE RECYCLING LTD,03162439,19-12-2016,0000064065,51.65,0,Westmorland Multi-storey 660Ltr bin,182012,Environment Waste Management Recycling
South Lakeland District Council,http://opendatacommunities.org/id/district-council/south-lakeland,31/12/2016,Cemeteries Office,Cultural Environmental Regulatory & Planning Services,http://opendatacommunities.org/def/concept/finance/sercop/objective/104,CUMBRIA WASTE RECYCLING LTD,03162439,19-12-2016,0000064067,31.8,0,SLDC Cemetery waste bin emptying from,182012,Environment Waste Management Recycling
South Lakeland District Council,http://opendatacommunities.org/id/district-council/south-lakeland,31/12/2016,Development Implementation,Cultural Environmental Regulatory & Planning Services,http://opendatacommunities.org/def/concept/finance/sercop/objective/104,CUMBRIA WASTE RECYCLING LTD,03162439,19-12-2016,0000064069,125.41,0,"Waste Collection @ 124 Highgate, Kendal",182012,Environment Waste Management Recycling
South Lakeland District Council,http://opendatacommunities.org/id/district-council/south-lakeland,31/12/2016,Business Support Community Services,Transport Planning Policy,http://opendatacommunities.org/def/concept/finance/sercop/objective/107,ARCO LIMITED,00133804,19-12-2016,0000064073,3.96,0,Cleaning materials,141100,Clothing Protective
South Lakeland District Council,http://opendatacommunities.org/id/district-council/south-lakeland,31/12/2016,Business Support Community Services,Internal Trading Accounts,,ARCO LIMITED,00133804,19-12-2016,0000064073,12.58,0,Cleaning materials,141100,Clothing Protective
South Lakeland District Council,http://opendatacommunities.org/id/district-council/south-lakeland,31/12/2016,Business Support Community Services,Internal Trading Accounts,,ARCO LIMITED,00133804,19-12-2016,0000064074,24.28,0,Cleaning materials,141100,Clothing Protective
South Lakeland District Council,http://opendatacommunities.org/id/district-council/south-lakeland,31/12/2016,Business Support Community Services,Internal Trading Accounts,,ARCO LIMITED,00133804,19-12-2016,0000064075,6.07,0,Cleaning materials,141100,Clothing Protective
South Lakeland District Council,http://opendatacommunities.org/id/district-council/south-lakeland,31/12/2016,Business Support Community Services,Internal Trading Accounts,,S J Bargh,00532272,19-12-2016,0000064076,121,0,MOTs 2016/17,381400,Vehicle Mgt Maintenance
South Lakeland District Council,http://opendatacommunities.org/id/district-council/south-lakeland,31/12/2016,Development Strategy,Cultural Environmental Regulatory & Planning Services,http://opendatacommunities.org/def/concept/finance/sercop/objective/104,Nepro Ltd,,21-12-2016,0000064079,19808.68,0,Kendal Town Master Plan,151900,Consultancy Management
South Lakeland District Council,http://opendatacommunities.org/id/district-council/south-lakeland,31/12/2016,Business Support Community Services,Internal Trading Accounts,,AINSWORTH'S GARAGE,,19-12-2016,0000064081,195,0,Recover LK12 FDX,381400,Vehicle Mgt Maintenance
South Lakeland District Council,http://opendatacommunities.org/id/district-council/south-lakeland,31/12/2016,Business Support Community Services,Internal Trading Accounts,,H WICKS (LINDAL) LTD,00754590,19-12-2016,0000064082,2046.28,0,"Gate fees, handling, transport & baling",182012,Environment Waste Management Recycling
South Lakeland District Council,http://opendatacommunities.org/id/district-council/south-lakeland,31/12/2016,Business Support Community Services,Internal Trading Accounts,,H WICKS (LINDAL) LTD,00754590,21-12-2016,0000064083,300,0,"Gate fees, handling, transport & baling",182012,Environment Waste Management Recycling
South Lakeland District Council,http://opendatacommunities.org/id/district-council/south-lakeland,31/12/2016,Business Support Community Services,Internal Trading Accounts,,H WICKS (LINDAL) LTD,00754590,21-12-2016,0000064084,300,0,"Gate fees, handling, transport & baling",182012,Environment Waste Management Recycling
South Lakeland District Council,http://opendatacommunities.org/id/district-council/south-lakeland,31/12/2016,Policy & Partnerships,Central Services,http://opendatacommunities.org/def/concept/finance/sercop/objective/102,NORTHGATE VEHICLE HIRE LTD,01434157,19-12-2016,0000064085,15.14,0,Car Hire for L.C for meetings 8-12-16,381600,Vehicle Mgt Leasing
South Lakeland District Council,http://opendatacommunities.org/id/district-council/south-lakeland,31/12/2016,Policy & Partnerships,Central Services,http://opendatacommunities.org/def/concept/finance/sercop/objective/102,LOCAL GOVERNMENT ASSOCIATION,,19-12-2016,0000064087,249,0,LC to attend DCN Annual Conference -,202100,Financial Services Subscriptions
South Lakeland District Council,http://opendatacommunities.org/id/district-council/south-lakeland,31/12/2016,Business Support Community Services,Internal Trading Accounts,,AINSWORTH'S GARAGE,,19-12-2016,0000064089,255,0,Recover SL211,381400,Vehicle Mgt Maintenance
South Lakeland District Council,http://opendatacommunities.org/id/district-council/south-lakeland,31/12/2016,Business Support Community Services,Internal Trading Accounts,,DENNIS EAGLE LTD,03794455,19-12-2016,0000064095,310.99,0,Blades,381300,Vehicle Mgt Industrial
South Lakeland District Council,http://opendatacommunities.org/id/district-council/south-lakeland,31/12/2016,Environment and Housing,Housing Services,http://opendatacommunities.org/def/concept/finance/sercop/objective/108,The Oyster Partnership,05020374,19-12-2016,0000064097,390,0,Agency staff,261300,HR Recruitment & Assessment
South Lakeland District Council,http://opendatacommunities.org/id/district-council/south-lakeland,31/12/2016,Lake Wardens,Cultural Environmental Regulatory & Planning Services,http://opendatacommunities.org/def/concept/finance/sercop/objective/104,ROYAL YACHTING ASSOCIATION,00878357,19-12-2016,0000064098,263.33,0,Annual Recognition Fee - Renewable,202100,Financial Services Subscriptions
South Lakeland District Council,http://opendatacommunities.org/id/district-council/south-lakeland,31/12/2016,ICT Group,Central Services,http://opendatacommunities.org/def/concept/finance/sercop/objective/102,PROBRAND LTD,02653446,19-12-2016,0000064099,1113.56,0,LBC173/20FD002UUK    LenovoYoga 260,271600,ICT Software Customised & Bespoke
South Lakeland District Council,http://opendatacommunities.org/id/district-council/south-lakeland,31/12/2016,Business Support Community Services,Central Services,http://opendatacommunities.org/def/concept/finance/sercop/objective/102,UK Container Maintenance Ltd,3617405,19-12-2016,0000064100,2840,0,Refurbished steel containers in grey,182000,Environment Waste Management
South Lakeland District Council,http://opendatacommunities.org/id/district-council/south-lakeland,31/12/2016,Business Support Community Services,Internal Trading Accounts,,Masterstaff Limited,02777593,19-12-2016,0000064106,2756.38,0,Agency staff - December 2016,261300,HR Recruitment & Assessment
South Lakeland District Council,http://opendatacommunities.org/id/district-council/south-lakeland,31/12/2016,Business Support Community Services,Internal Trading Accounts,,CUMBRIA TRUCK CENTRE LTD,04298488,19-12-2016,0000064109,118.7,0,TPS,381300,Vehicle Mgt Industrial
South Lakeland District Council,http://opendatacommunities.org/id/district-council/south-lakeland,31/12/2016,Business Support Community Services,Internal Trading Accounts,,FAUN ZOELLER (UK) LTD,00751804,19-12-2016,0000064110,44.59,0,Pipe,381400,Vehicle Mgt Maintenance
South Lakeland District Council,http://opendatacommunities.org/id/district-council/south-lakeland,31/12/2016,Human Resources,Central Services,http://opendatacommunities.org/def/concept/finance/sercop/objective/102,IOSH SERVICES LTD,01816826,19-12-2016,0000064111,200,0,IOSH Working License,221100,Health & Safety� Maintenance
South Lakeland District Council,http://opendatacommunities.org/id/district-council/south-lakeland,31/12/2016,Development Implementation,Cultural Environmental Regulatory & Planning Services,http://opendatacommunities.org/def/concept/finance/sercop/objective/104,ADECCO UK LIMITED,00593232,19-12-2016,0000064112,393.6,0,SLDC Project Officer - ,261400,HR Temporary & Agency Staff
South Lakeland District Council,http://opendatacommunities.org/id/district-council/south-lakeland,31/12/2016,Development Implementation,Cultural Environmental Regulatory & Planning Services,http://opendatacommunities.org/def/concept/finance/sercop/objective/104,ADECCO UK LIMITED,00593232,19-12-2016,0000064113,312,0,Administrator - (24hrs,261400,HR Temporary & Agency Staff
South Lakeland District Council,http://opendatacommunities.org/id/district-council/south-lakeland,31/12/2016,Environment and Housing,Housing,http://opendatacommunities.org/def/concept/finance/sercop/objective/108,ENVIRONMENT & HOUSING GRANTS,,19-12-2016,0000064121,250,0,"Wray Crescent, Kendal, LA9 7NX",201700,Financial Services Grants
South Lakeland District Council,http://opendatacommunities.org/id/district-council/south-lakeland,31/12/2016,Legal Services,Central Services,http://opendatacommunities.org/def/concept/finance/sercop/objective/102,Legal Counsel Ltd,10147194,19-12-2016,0000064122,1800,0,Employee ,281200,Legal Services General Support
South Lakeland District Council,http://opendatacommunities.org/id/district-council/south-lakeland,31/12/2016,Legal Services,Central Services,http://opendatacommunities.org/def/concept/finance/sercop/objective/102,Eventus Legal Recruitment,,19-12-2016,0000064123,243.75,0,Fees for November/December,261300,HR Recruitment & Assessment
South Lakeland District Council,http://opendatacommunities.org/id/district-council/south-lakeland,31/12/2016,Business Support Community Services,Housing Services,http://opendatacommunities.org/def/concept/finance/sercop/objective/108,CHARTERED INSTITUTE OF HOUSING,,19-12-2016,0000064124,296,0,Membership to Chartered Insitute of,202100,Financial Services Subscriptions
South Lakeland District Council,http://opendatacommunities.org/id/district-council/south-lakeland,31/12/2016,Revenues and Benefits,,,Kendal BID Ltd,08986243,19-12-2016,0000064125,3366.35,0,Collection figures for August &,201700,Financial Services Grants
South Lakeland District Council,http://opendatacommunities.org/id/district-council/south-lakeland,31/12/2016,Social Enterprise Admin,Cultural Environmental Regulatory & Planning Services,http://opendatacommunities.org/def/concept/finance/sercop/objective/104,LDA Cleaning Services Ltd,8917986,19-12-2016,0000064126,175,0,For  the continuation of cleaning,131310,Cleaning & Janitorial Cleaning Service
South Lakeland District Council,http://opendatacommunities.org/id/district-council/south-lakeland,31/12/2016,Electoral Services,Central Services,http://opendatacommunities.org/def/concept/finance/sercop/objective/102,HALAROSE LIMITED,01362834,19-12-2016,0000064127,1515,0,Annual Support & Maintenace for Tellus,271600,ICT Software Customised & Bespoke
South Lakeland District Council,http://opendatacommunities.org/id/district-council/south-lakeland,31/12/2016,Lake Wardens,Cultural Environmental Regulatory & Planning Services,http://opendatacommunities.org/def/concept/finance/sercop/objective/104,LEE SANITATION LTD,02332435,19-12-2016,0000064128,404.67,0,2000 x Digicard LeeSan Card (1 Credit),182000,Environment Waste Management
South Lakeland District Council,http://opendatacommunities.org/id/district-council/south-lakeland,31/12/2016,Business Support Community Services,Housing Services,http://opendatacommunities.org/def/concept/finance/sercop/objective/108,Landlord,07803122,19-12-2016,0000064134,500,0,Monthly rent ,250000,Housing
South Lakeland District Council,http://opendatacommunities.org/id/district-council/south-lakeland,31/12/2016,Business Support Community Services,Housing Services,http://opendatacommunities.org/def/concept/finance/sercop/objective/108,Landlord,,19-12-2016,0000064135,625,0,Monthly rent ,250000,Housing
South Lakeland District Council,http://opendatacommunities.org/id/district-council/south-lakeland,31/12/2016,Business Support Community Services,Housing Services,http://opendatacommunities.org/def/concept/finance/sercop/objective/108,Landlord,,19-12-2016,0000064136,500,0,Monthly rent payment ,202000,Financial Services Rents
South Lakeland District Council,http://opendatacommunities.org/id/district-council/south-lakeland,31/12/2016,Business Support Community Services,Housing Services,http://opendatacommunities.org/def/concept/finance/sercop/objective/108,Landlord,07009105,19-12-2016,0000064137,480,0,Monthly rent ,250000,Housing
South Lakeland District Council,http://opendatacommunities.org/id/district-council/south-lakeland,31/12/2016,Business Support Community Services,Housing Services,http://opendatacommunities.org/def/concept/finance/sercop/objective/108,Landlord,,19-12-2016,0000064138,400,0,Monthly rent ,250000,Housing
South Lakeland District Council,http://opendatacommunities.org/id/district-council/south-lakeland,31/12/2016,Business Support Community Services,Housing Services,http://opendatacommunities.org/def/concept/finance/sercop/objective/108,Landlord,,19-12-2016,0000064139,520,0,Monthly rent payment ,250000,Housing
South Lakeland District Council,http://opendatacommunities.org/id/district-council/south-lakeland,31/12/2016,Business Support Community Services,Housing Services,http://opendatacommunities.org/def/concept/finance/sercop/objective/108,Landlord,,19-12-2016,0000064140,500,0,Monthly rent ,250000,Housing
South Lakeland District Council,http://opendatacommunities.org/id/district-council/south-lakeland,31/12/2016,Business Support Community Services,Housing Services,http://opendatacommunities.org/def/concept/finance/sercop/objective/108,Landlord,,19-12-2016,0000064141,625,0,Monthly rent ,202000,Financial Services Rents
South Lakeland District Council,http://opendatacommunities.org/id/district-council/south-lakeland,31/12/2016,Business Support Community Services,Housing Services,http://opendatacommunities.org/def/concept/finance/sercop/objective/108,Landlord,,19-12-2016,0000064142,500,0,Monthly rent ,250010,Housing Letting Agents
South Lakeland District Council,http://opendatacommunities.org/id/district-council/south-lakeland,31/12/2016,Development Implementation,Cultural Environmental Regulatory & Planning Services,http://opendatacommunities.org/def/concept/finance/sercop/objective/104,Copywriting service,,19-12-2016,0000064143,1500,0,Copywriting for Kendal Website,151000,Consultancy Business
South Lakeland District Council,http://opendatacommunities.org/id/district-council/south-lakeland,31/12/2016,Business Support Community Services,Housing Services,http://opendatacommunities.org/def/concept/finance/sercop/objective/108,Landlord,,19-12-2016,0000064147,410,0,Monthly rent ,250000,Housing
South Lakeland District Council,http://opendatacommunities.org/id/district-council/south-lakeland,31/12/2016,Business Support Community Services,Housing Services,http://opendatacommunities.org/def/concept/finance/sercop/objective/108,Landlord,,19-12-2016,0000064148,625,0,Monthly rent ,202000,Financial Services Rents
South Lakeland District Council,http://opendatacommunities.org/id/district-council/south-lakeland,31/12/2016,Business Support Community Services,Housing Services,http://opendatacommunities.org/def/concept/finance/sercop/objective/108,Landlord,,19-12-2016,0000064149,500,0,Monthly rent ,202000,Financial Services Rents
South Lakeland District Council,http://opendatacommunities.org/id/district-council/south-lakeland,31/12/2016,Business Support Community Services,Housing Services,http://opendatacommunities.org/def/concept/finance/sercop/objective/108,Landlord,,19-12-2016,0000064150,415,0,Monthly rent ,250010,Housing Letting Agents
South Lakeland District Council,http://opendatacommunities.org/id/district-council/south-lakeland,31/12/2016,Business Support Community Services,Housing Services,http://opendatacommunities.org/def/concept/finance/sercop/objective/108,Furness Flats,,19-12-2016,0000064151,704,0,Rent in advance,250010,Housing Letting Agents
South Lakeland District Council,http://opendatacommunities.org/id/district-council/south-lakeland,31/12/2016,Business Support Community Services,Housing Services,http://opendatacommunities.org/def/concept/finance/sercop/objective/108,Landlord,,19-12-2016,0000064152,650,0,Rent in advance,250000,Housing
South Lakeland District Council,http://opendatacommunities.org/id/district-council/south-lakeland,31/12/2016,Business Support Community Services,Housing Services,http://opendatacommunities.org/def/concept/finance/sercop/objective/108,SOUTH LAKES HOUSING RENT A/C,,19-12-2016,0000064153,381.36,0,Rent in advance,191700,Facilities Property Management
South Lakeland District Council,http://opendatacommunities.org/id/district-council/south-lakeland,31/12/2016,Human Resources,Central Services,http://opendatacommunities.org/def/concept/finance/sercop/objective/102,WEIGHTMANS LLP,OC326117,19-12-2016,0000064157,144,0,Bankruptcy ,281300,Legal Services Legal Opinion
South Lakeland District Council,http://opendatacommunities.org/id/district-council/south-lakeland,31/12/2016,Financial Services,SLDC as Agent,,LAKELAND ESTATES (AMBLESIDE) LTD,03022544,19-12-2016,0000064158,10804.4,0,2016/17 Income,191700,Facilities Property Management
South Lakeland District Council,http://opendatacommunities.org/id/district-council/south-lakeland,31/12/2016,Legal Services,Central Services,http://opendatacommunities.org/def/concept/finance/sercop/objective/102,Legal Counsel Ltd,10147194,19-12-2016,0000064159,1896,0,Employee ,281200,Legal Services General Support
South Lakeland District Council,http://opendatacommunities.org/id/district-council/south-lakeland,31/12/2016,Business Support Community Services,Cultural Environmental Regulatory & Planning Services,http://opendatacommunities.org/def/concept/finance/sercop/objective/104,Buckingham Futures,8329499,19-12-2016,0000064161,1244.4,0,Supply 1 Full Time Private Water Officer,182030,Environment Water Assessment & Treatment
South Lakeland District Council,http://opendatacommunities.org/id/district-council/south-lakeland,31/12/2016,Social Enterprise Admin,Central Services,http://opendatacommunities.org/def/concept/finance/sercop/objective/102,RESOLUTION DATA MANAGEMENT LTD,01910045,19-12-2016,0000064163,8016.8,0,SCANNING OF BUILDING CONTROL FILES AND,271600,ICT Software Customised & Bespoke
South Lakeland District Council,http://opendatacommunities.org/id/district-council/south-lakeland,31/12/2016,Revenues and Benefits,Central Services,http://opendatacommunities.org/def/concept/finance/sercop/objective/102,BADENOCH & CLARK,1356186,21-12-2016,0000064166,320.04,0,Revs and Bens  (April & May 2016),261300,HR Recruitment & Assessment
South Lakeland District Council,http://opendatacommunities.org/id/district-council/south-lakeland,31/12/2016,Business Support Community Services,Internal Trading Accounts,,DENNIS EAGLE LTD,03794455,21-12-2016,0000064168,69.96,0,Ring,381300,Vehicle Mgt Industrial
South Lakeland District Council,http://opendatacommunities.org/id/district-council/south-lakeland,31/12/2016,Business Support Community Services,Internal Trading Accounts,,EK MOTOR FACTORS LTD,00838524,21-12-2016,0000064169,5.95,0,Oil filters,381400,Vehicle Mgt Maintenance
South Lakeland District Council,http://opendatacommunities.org/id/district-council/south-lakeland,31/12/2016,Business Support Community Services,Internal Trading Accounts,,EK MOTOR FACTORS LTD,00838524,21-12-2016,0000064170,89.9,0,Oil filters,381400,Vehicle Mgt Maintenance
South Lakeland District Council,http://opendatacommunities.org/id/district-council/south-lakeland,31/12/2016,Business Support Community Services,Internal Trading Accounts,,DENNIS EAGLE LTD,03794455,21-12-2016,0000064171,570.26,0,Ring,381300,Vehicle Mgt Industrial
South Lakeland District Council,http://opendatacommunities.org/id/district-council/south-lakeland,31/12/2016,Business Support Community Services,Internal Trading Accounts,,DENNIS EAGLE LTD,03794455,21-12-2016,0000064172,128.15,0,Ring,381300,Vehicle Mgt Industrial
South Lakeland District Council,http://opendatacommunities.org/id/district-council/south-lakeland,31/12/2016,Business Support Community Services,Internal Trading Accounts,,EK MOTOR FACTORS LTD,00838524,21-12-2016,0000064173,3.6,0,Oil filters,381400,Vehicle Mgt Maintenance
South Lakeland District Council,http://opendatacommunities.org/id/district-council/south-lakeland,31/12/2016,Business Support Community Services,Internal Trading Accounts,,DENNIS EAGLE LTD,03794455,21-12-2016,0000064174,379.36,0,Ring,381300,Vehicle Mgt Industrial
South Lakeland District Council,http://opendatacommunities.org/id/district-council/south-lakeland,31/12/2016,Business Support Community Services,Internal Trading Accounts,,EK MOTOR FACTORS LTD,00838524,21-12-2016,0000064175,84.88,0,Oil filters,381400,Vehicle Mgt Maintenance
South Lakeland District Council,http://opendatacommunities.org/id/district-council/south-lakeland,31/12/2016,Business Support Community Services,Internal Trading Accounts,,DENNIS EAGLE LTD,03794455,21-12-2016,0000064176,6.75,0,Ring,381300,Vehicle Mgt Industrial
South Lakeland District Council,http://opendatacommunities.org/id/district-council/south-lakeland,31/12/2016,Business Support Community Services,Internal Trading Accounts,,DENNIS EAGLE LTD,03794455,21-12-2016,0000064177,325.5,0,Ring,381300,Vehicle Mgt Industrial
South Lakeland District Council,http://opendatacommunities.org/id/district-council/south-lakeland,31/12/2016,Business Support Community Services,Internal Trading Accounts,,DENNIS EAGLE LTD,03794455,21-12-2016,0000064179,105.1,0,Ring,381300,Vehicle Mgt Industrial
South Lakeland District Council,http://opendatacommunities.org/id/district-council/south-lakeland,31/12/2016,Business Support Community Services,Internal Trading Accounts,,EK MOTOR FACTORS LTD,00838524,21-12-2016,0000064180,52.62,0,Oil filters,381400,Vehicle Mgt Maintenance
South Lakeland District Council,http://opendatacommunities.org/id/district-council/south-lakeland,31/12/2016,Business Support Community Services,Internal Trading Accounts,,HYDRAIR TRUCK & TRAILER PARTS LTD,,21-12-2016,0000064182,72,0,Valve,381500,Vehicle Mgt Parts
South Lakeland District Council,http://opendatacommunities.org/id/district-council/south-lakeland,31/12/2016,Business Support Community Services,Internal Trading Accounts,,ARCO LIMITED,00133804,21-12-2016,0000064184,93.61,0,Cleaning materials,141100,Clothing Protective
South Lakeland District Council,http://opendatacommunities.org/id/district-council/south-lakeland,31/12/2016,Business Support Community Services,Internal Trading Accounts,,ARCO LIMITED,00133804,21-12-2016,0000064185,19.98,0,Cleaning materials,141100,Clothing Protective
South Lakeland District Council,http://opendatacommunities.org/id/district-council/south-lakeland,31/12/2016,Business Support Community Services,Internal Trading Accounts,,ARCO LIMITED,00133804,21-12-2016,0000064186,6.08,0,Cleaning materials,141100,Clothing Protective
South Lakeland District Council,http://opendatacommunities.org/id/district-council/south-lakeland,31/12/2016,Development Implementation,Central Services,http://opendatacommunities.org/def/concept/finance/sercop/objective/102,LAMBERT SMITH HAMPTON GROUP,2521225,21-12-2016,0000064187,60140.17,0,Property Services Contract - Monthly,999999,Unclassifiable
South Lakeland District Council,http://opendatacommunities.org/id/district-council/south-lakeland,31/12/2016,Business Support Community Services,Internal Trading Accounts,,HYDRAIR TRUCK & TRAILER PARTS LTD,,21-12-2016,0000064188,288,0,Valve,381500,Vehicle Mgt Parts
South Lakeland District Council,http://opendatacommunities.org/id/district-council/south-lakeland,31/12/2016,Business Support Community Services,Internal Trading Accounts,,VOLVO GROUP UK LTD,02190944,21-12-2016,0000064189,116,0,Flexi,381000,Vehicle Mgt Commercial
South Lakeland District Council,http://opendatacommunities.org/id/district-council/south-lakeland,31/12/2016,Business Support Community Services,Internal Trading Accounts,,TECHNIJET LTD,02776601,21-12-2016,0000064193,68.91,0,Service & repair pressure washers,139999,Cleaning & Janitorial Not Elsewhere Clas
South Lakeland District Council,http://opendatacommunities.org/id/district-council/south-lakeland,31/12/2016,Development Implementation,Cultural Environmental Regulatory & Planning Services,http://opendatacommunities.org/def/concept/finance/sercop/objective/104,Nepro Ltd,,21-12-2016,0000064200,7375,0,Key Service Centres - Economic Studies,151900,Consultancy Management
South Lakeland District Council,http://opendatacommunities.org/id/district-council/south-lakeland,31/12/2016,Human Resources,Central Services,http://opendatacommunities.org/def/concept/finance/sercop/objective/102,Choose Occupational Health,07365943,21-12-2016,0000064211,591,0,August 2016 Half day clinic 380,191800,Facilities Public Relations & Image
South Lakeland District Council,http://opendatacommunities.org/id/district-council/south-lakeland,31/12/2016,Human Resources,Central Services,http://opendatacommunities.org/def/concept/finance/sercop/objective/102,Choose Occupational Health,07365943,21-12-2016,0000064212,1768.75,0,x 3 Appointments - Fit for work,191800,Facilities Public Relations & Image
South Lakeland District Council,http://opendatacommunities.org/id/district-council/south-lakeland,31/12/2016,Business Support Community Services,Internal Trading Accounts,,FAUN ZOELLER (UK) LTD,00751804,21-12-2016,0000064215,35,0,Fuel cap,381400,Vehicle Mgt Maintenance
South Lakeland District Council,http://opendatacommunities.org/id/district-council/south-lakeland,31/12/2016,Business Support Community Services,Internal Trading Accounts,,GARWOOD EUROPE LTD,04333504,21-12-2016,0000064223,402.44,0,Pins,182011,Environment Waste Management Consumables
South Lakeland District Council,http://opendatacommunities.org/id/district-council/south-lakeland,31/12/2016,Business Support Community Services,Central Services,http://opendatacommunities.org/def/concept/finance/sercop/objective/102,CRACKING SPREAD,,21-12-2016,0000064226,40,0,Catering for KBT course,291000,Arts & Leisure Services Events
South Lakeland District Council,http://opendatacommunities.org/id/district-council/south-lakeland,31/12/2016,Business Support Community Services,Internal Trading Accounts,,FAUN ZOELLER (UK) LTD,00751804,21-12-2016,0000064228,1100,0,Pipe,381400,Vehicle Mgt Maintenance
South Lakeland District Council,http://opendatacommunities.org/id/district-council/south-lakeland,31/12/2016,Business Support Community Services,Internal Trading Accounts,,JOHNSTON SWEEPERS LTD,00199841,21-12-2016,0000064229,167.49,0,Tank,181600,Environment Street Cleansing
South Lakeland District Council,http://opendatacommunities.org/id/district-council/south-lakeland,31/12/2016,Business Support Community Services,Internal Trading Accounts,,VOLVO GROUP UK LTD,02190944,21-12-2016,0000064230,549.92,0,Radiator,381000,Vehicle Mgt Commercial
South Lakeland District Council,http://opendatacommunities.org/id/district-council/south-lakeland,31/12/2016,Kendal Town Hall,Cultural Environmental Regulatory & Planning Services,http://opendatacommunities.org/def/concept/finance/sercop/objective/104,SOUNDSMITH LIMITED,05366630,21-12-2016,0000064232,440,0,Installation of temporary sound system,171111,Education Audio Visual
South Lakeland District Council,http://opendatacommunities.org/id/district-council/south-lakeland,31/12/2016,Development Strategy,Cultural Environmental Regulatory & Planning Services,http://opendatacommunities.org/def/concept/finance/sercop/objective/104,RTPI SUBSCRIPTIONS,,21-12-2016,0000064250,290,0,2016 Subscription: Chartered Member for,391100,Construction Buildings
South Lakeland District Council,http://opendatacommunities.org/id/district-council/south-lakeland,31/12/2016,Development Strategy,Cultural Environmental Regulatory & Planning Services,http://opendatacommunities.org/def/concept/finance/sercop/objective/104,RTPI SUBSCRIPTIONS,,21-12-2016,0000064251,290,0,2016 Subscription: Chartered Member for,391100,Construction Buildings
South Lakeland District Council,http://opendatacommunities.org/id/district-council/south-lakeland,31/12/2016,Development Strategy,Cultural Environmental Regulatory & Planning Services,http://opendatacommunities.org/def/concept/finance/sercop/objective/104,RTPI SUBSCRIPTIONS,,21-12-2016,0000064252,290,0,2016 Subscription: Chartered Member for,391100,Construction Buildings
South Lakeland District Council,http://opendatacommunities.org/id/district-council/south-lakeland,31/12/2016,Development Strategy,Cultural Environmental Regulatory & Planning Services,http://opendatacommunities.org/def/concept/finance/sercop/objective/104,RTPI SUBSCRIPTIONS,,21-12-2016,0000064254,290,0,2016 Subscription: Chartered Member for,391100,Construction Buildings
South Lakeland District Council,http://opendatacommunities.org/id/district-council/south-lakeland,31/12/2016,Development Strategy,Cultural Environmental Regulatory & Planning Services,http://opendatacommunities.org/def/concept/finance/sercop/objective/104,RTPI SUBSCRIPTIONS,,21-12-2016,0000064256,290,0,2016 Subscription: Chartered Member for,391100,Construction Buildings
South Lakeland District Council,http://opendatacommunities.org/id/district-council/south-lakeland,31/12/2016,Social Enterprise Admin,Cultural Environmental Regulatory & Planning Services,http://opendatacommunities.org/def/concept/finance/sercop/objective/104,LDA Cleaning Services Ltd,8917986,21-12-2016,0000064257,175,0,For  the continuation of cleaning,131310,Cleaning & Janitorial Cleaning Service
South Lakeland District Council,http://opendatacommunities.org/id/district-council/south-lakeland,31/12/2016,Leisure and Wellbeing,Cultural Environmental Regulatory & Planning Services,http://opendatacommunities.org/def/concept/finance/sercop/objective/104,NPS NORTH WEST LTD,06614601,21-12-2016,0000064261,522.33,0,JM,391110,Construction Buildings Construction
South Lakeland District Council,http://opendatacommunities.org/id/district-council/south-lakeland,31/12/2016,Social Enterprise Admin,Cultural Environmental Regulatory & Planning Services,http://opendatacommunities.org/def/concept/finance/sercop/objective/104,FMG CONSULTING LTD,07309324,21-12-2016,0000064262,4000,0,Ulverston Leisure Site master Plan -,151900,Consultancy Management
South Lakeland District Council,http://opendatacommunities.org/id/district-council/south-lakeland,31/12/2016,Democratic and Member Services,Cultural Environmental Regulatory & Planning Services,http://opendatacommunities.org/def/concept/finance/sercop/objective/104,GRANTS- MISCELLANEOUS,,21-12-2016,0000064276,500,0,Cllr donation to an economic,201700,Financial Services Grants
South Lakeland District Council,http://opendatacommunities.org/id/district-council/south-lakeland,31/12/2016,Environment and Housing,Housing Services,http://opendatacommunities.org/def/concept/finance/sercop/objective/108,GROWING CONCERNS LTD,,21-12-2016,0000064281,1044.96,0,Payment for Handy Person Scheme,391200,Construction Engineering
South Lakeland District Council,http://opendatacommunities.org/id/district-council/south-lakeland,31/12/2016,Environment and Housing,Housing,http://opendatacommunities.org/def/concept/finance/sercop/objective/108,ENVIRONMENT & HOUSING GRANTS,,21-12-2016,0000064282,10165.2,0,"Station House, Station Road,",201700,Financial Services Grants
South Lakeland District Council,http://opendatacommunities.org/id/district-council/south-lakeland,31/12/2016,Environment and Housing,Housing,http://opendatacommunities.org/def/concept/finance/sercop/objective/108,Property Account,,21-12-2016,0000064283,16472.31,0,Affordable Housing Grant in respect of,250000,Housing
South Lakeland District Council,http://opendatacommunities.org/id/district-council/south-lakeland,31/12/2016,Kendal Town Hall,External Trading Accounts,,PHONOGRAPHIC PERFORMANCE LIMITED,00288046,21-12-2016,0000064284,122.02,0,Phonographic licence for KTH 1st Jan,202100,Financial Services Subscriptions
South Lakeland District Council,http://opendatacommunities.org/id/district-council/south-lakeland,31/12/2016,Kendal Town Hall,Cultural Environmental Regulatory & Planning Services,http://opendatacommunities.org/def/concept/finance/sercop/objective/104,PHONOGRAPHIC PERFORMANCE LIMITED,00288046,21-12-2016,0000064284,262.72,0,Phonographic licence for KTH 1st Jan,202100,Financial Services Subscriptions
South Lakeland District Council,http://opendatacommunities.org/id/district-council/south-lakeland,31/12/2016,Business Support Community Services,Internal Trading Accounts,,RIBBLESDALE AUTO ELECTRICS 1992 LTD,02732686,21-12-2016,0000064285,28.52,0,Lamp,381500,Vehicle Mgt Parts
South Lakeland District Council,http://opendatacommunities.org/id/district-council/south-lakeland,31/12/2016,Business Support Community Services,Internal Trading Accounts,,RIBBLESDALE AUTO ELECTRICS 1992 LTD,02732686,21-12-2016,0000064286,39,0,Lamp,381500,Vehicle Mgt Parts
